Workbook

Sheet EZ ECell
B1: 2023 BLM AND NDEP ACCEPTED VERSION
B2: Facility:
B3: Location:
B4: Operator:
B5: Prepared By:
B6: SubmittalDate:
B8: Fleet:
B10: Ex Pond Config:
B12: Pond Area (ac)
B13: Pond Depth (ft)
B15: Slope to Material Source (%)
B16: Distance to Material Source (ft)
B18: Labor | C18: =IF(C16=0,"",'E Cell Calculator'!C361) ->  | D18: =IF(D16=0,"",'E Cell Calculator'!C381) ->  | E18: =IF(E16=0,"",'E Cell Calculator'!C401) ->  | F18: =IF(F16=0,"",'E Cell Calculator'!C422) ->  | G18: =IF(G16=0,"",'E Cell Calculator'!C442) ->  | H18: =IF(H16=0,"",'E Cell Calculator'!C462) -> 
B19: Equip | C19: =IF(C16=0,"",'E Cell Calculator'!D361) ->  | D19: =IF(D16=0,"",'E Cell Calculator'!D381) ->  | E19: =IF(E16=0,"",'E Cell Calculator'!D401) ->  | F19: =IF(F16=0,"",'E Cell Calculator'!D422) ->  | G19: =IF(G16=0,"",'E Cell Calculator'!D442) ->  | H19: =IF(H16=0,"",'E Cell Calculator'!D462) -> 
B20: Material | C20: =IF(C16=0,"",'E Cell Calculator'!E361) ->  | D20: =IF(D16=0,"",'E Cell Calculator'!E381) ->  | E20: =IF(E16=0,"",'E Cell Calculator'!E401) ->  | F20: =IF(F16=0,"",'E Cell Calculator'!E422) ->  | G20: =IF(G16=0,"",'E Cell Calculator'!E442) ->  | H20: =IF(H16=0,"",'E Cell Calculator'!E462) -> 
B21: Total | C21: =SUM(C18:C20) -> 0 | D21: =SUM(D18:D20) -> 0 | E21: 0 | F21: 0 | G21: 0 | H21: 0
C22: =IF(C16=0,"",C21/C12) -> 
C24: Summary
C25: Labor | D25: Equipment | E25: Material | F25: Total
C26: =IF(SUM(C18:H18)=0,"",SUM(C18:H18)) ->  | D26: =IF(SUM(C19:H19)=0,"",SUM(C19:H19)) ->  | E26: =IF(SUM(C20:H20)=0,"",SUM(C20:H20)) ->  | F26: =IF(SUM(C21:H21)=0,"",SUM(C21:H21)) -> 
D28: Average Cost = | E28: =IF(F26="","",F26/(C12+D12+E12+F12+G12+H12)) -> 
B29: User Notes:
B35: Assumptions:
B36: 1) Labor, Equipment and Material Prices are based on 2023 SRCE Cost Data. Cost Basis is Northern Nevada, Mine Plan of Operations, Public/Public Private, Standardized Data.
B37: 2) Small Fleet: 769D Truck, 325C Excavator, 966G Loader, D9R Dozer, D7R Dozer
B38: 3) Large Fleet: 777D Truck, 385BL Excavator, 988G Loader, D10R Dozer, D7R Dozer
B39: 4) Excavation, Backfill, Cover, Ripping, Growth Medium and Grading materials are based on Alluvium properties and are from the same source location.
B40: 5) Includes revegitation cost over stated pond area.
B41: 6) Growth Medium/Cover is 24 inches over the stated pond area.
B42: 7) Mix 2, "Low Hills" is used for revegitation seed mix.
B43: 8) Includes installation costs for 10 foot high chain link perimiter fencing setback 20 feet. Perimiter is 4x square root of the area.
B44: 9) Includes installation cost for new heap to pond double wall pipe.
B45: 10) Includes installation cost for one 1500 gallon dosing tank.
B46: 11) Includes installation costs for distributing piping.
B47: 12) Includes costs for inspection, repair and removal of 1/2 foot of sludge on existing lined ponds.
B48: 13) Includes excavation costs for new ponds.
B49: 14) Includes installation costs for double liners with geonetting on new and unlined ponds, a single liner, geonetting on single lined ponds, and no liner cost on existing double lined ponds.
B50: 15) New liner installation includes cost for a key trench

Sheet E Cell Calculator
A1: 2023 BLM AND NDEP ACCEPTED VERSION
A3: Process Ponds - Cost Summary | H3: Facility Name: | J3: =IF('EZ ECell'!C2="","",'EZ ECell'!C2) -> 
C4: Labor | D4: Equipment | E4: Materials | F4: Totals | H4: Location: | J4: =IF('EZ ECell'!C3="","",'EZ ECell'!C3) -> 
B5: Sludge Removal and Disposal | C5: N/A | D5: =G131 -> 0 | E5: N/A | F5: =SUM(C5:E5) -> 0 | H5: Operator: | J5: =IF('EZ ECell'!C4="","",'EZ ECell'!C4) -> 
B6: Existing Liner Inspect and Repair | C6: =E146 -> 0 | D6: =F146 -> 0 | E6: =G146 -> 0 | F6: 0 | H6: Prepared By: | J6: =IF('EZ ECell'!C5="","",'EZ ECell'!C5) -> 
B7: New Pond Excavation | C7: =L162 -> 0 | D7: =M162 -> 0 | E7: N/A | F7: 0 | H7: Date of Submittal: | J7: =IF('EZ ECell'!C6="","",'EZ ECell'!C6) -> 
B8: Secondary Liner Installation | C8: =E177 -> 0 | D8: =F177 -> 0 | E8: =G177 -> 0 | F8: 0 | H8: File Name: | J8: =MID(CELL("filename"),SEARCH("[",CELL("filename"))+1,SEARCH("]",CELL("filename"))-SEARCH("[",CELL("filename"))-1) -> EZ_ECellCalculator_07_31_2023.xlsm
B9: Geonetting | C9: =E192 -> 0 | D9: =F192 -> 0 | E9: =G192 -> 0 | F9: 0 | H9: Model Version: | J9: 1.0.0 NDEP version 08.01.2023
B10: Primary Liner Installation | C10: =E207 -> 0 | D10: =F207 -> 0 | E10: =G207 -> 0 | F10: 0 | H10: Cost Data File: | J10: SRCE_Cost_Data_File_1_12_Std_2023.xlsm
B11: Liner Key Trenching | C11: =F221 -> 0 | D11: =G221 -> 0 | E11: N/A | F11: 0 | H11: Cost Data Date: | J11: 2023-08-01
B12: Dosing Tank | C12: =F235 -> 0 | D12: =G235 -> 0 | E12: =H235 -> 0 | F12: 0 | H12: Cost Basis Category: | J12: Northern Nevada
B13: Piping Manifold | C13: =F249 -> 0 | D13: =G249 -> 0 | E13: =H249 -> 0 | F13: 0
B14: Screening for Backfill | C14: =G263 -> 0 | D14: =H263 -> 0 | E14: N/A | F14: 0
B15: Pond Backfill | C15: =H277 -> 0 | D15: =I277 -> 0 | E15: N/A | F15: 0
B16: HLP to Pond to Pond Piping | C16: =C305 -> 0 | D16: =D305 -> 0 | E16: =E305 -> 0 | F16: 0
B17: Fencing | C17: =F320 -> 0 | D17: =G320 -> 0 | E17: =H320 -> 0 | F17: 0
B18: Growth Media | C18: =H337 -> 0 | D18: =I337 -> 0 | E18: N/A | F18: 0
B19: Subtotal | C19: =SUM(C5:C18) -> 0 | D19: =SUM(D5:D18) -> 0 | E19: =SUM(E5:E18) -> 0 | F19: 0
B20: Revegetation Costs | C20: =L337 -> 0 | D20: =M337 -> 0 | E20: =N337 -> 0 | F20: 0
B21: TOTALS | C21: =C19+C20 -> 0 | D21: =D19+D20 -> 0 | E21: =E19+E20 -> 0 | F21: 0
A23: Color Code Key
C24: User Input - Direct Input | D24: Direct Input
C25: User Input - Pull Down List | D25: Pull Down Selection
C26: Program Constant (can override) | D26: Alternate Input
C27: Program Calculated Value | D27: Locked Cell - Formula or Reference
A30: Evaporation Cell - User Input | E30: You must fill in ALL green cells and relevant blue cells in this section for each pond
D31: Pond Physical Dimensions (1) | I31: New Pond Parameters
A32: Description (required) | C32: Operators ID Code | D32: Pond Length | E32: Pond Width | F32: Pond Depth/Berm Height | G32: Pond Side slope Angle | H32: Feeboard | I32: New Pond Ground Slope | J32: New Pond Crest Width, Min 20' | K32: New Pond Max Emb. Height | L32: Excavating Material | M32: Material Type | N32: Excavating Equipment Fleet
A33: -1 | D33: ft | E33: ft | F33: ft | G33: _H:1V | H33: ft | I33: % grade | J33: ft | K33: ft | L33: (select) | M33: (select) | N33: (select)
A34: 1 | B34: =IF('EZ ECell'!C2="","",'EZ ECell'!C2) ->  | D34: =IF('EZ ECell'!C$12="","",SQRT('EZ ECell'!C$12*43560)) ->  | E34: =IF('EZ ECell'!C$12="","",SQRT('EZ ECell'!C$12*43560)) ->  | F34: ='EZ ECell'!C$13 -> 0 | G34: 3 | H34: 0 | I34: 0.02 | J34: 20 | K34: =F34 -> 0 | L34: 1 | M34: Gravel | N34: =IF('EZ ECell'!$C$8="Small Fleet","D7R",IF('EZ ECell'!$C$8="Large Fleet","D10R")) -> FALSE
A35: =A34+1 -> 2 | B35: =IF('EZ ECell'!D2="","",'EZ ECell'!D2) ->  | D35: =IF('EZ ECell'!D$12="","",SQRT('EZ ECell'!D$12*43560)) ->  | E35: =IF('EZ ECell'!D$12="","",SQRT('EZ ECell'!D$12*43560)) ->  | F35: ='EZ ECell'!D$13 -> 0 | G35: =G34 -> 3 | H35: 0 | I35: 0.02 | J35: 20 | K35: 0 | L35: 1 | M35: Gravel | N35: =IF('EZ ECell'!$D$8="Small Fleet","D7R",IF('EZ ECell'!$D$8="Large Fleet","D10R")) -> FALSE
A36: 3 | B36: =IF('EZ ECell'!E2="","",'EZ ECell'!E2) ->  | D36: =IF('EZ ECell'!E$12="","",SQRT('EZ ECell'!E$12*43560)) ->  | E36: =IF('EZ ECell'!E$12="","",SQRT('EZ ECell'!E$12*43560)) ->  | F36: ='EZ ECell'!E$13 -> 0 | G36: =G34 -> 3 | H36: 0 | I36: 0.02 | J36: 20 | K36: 0 | L36: 1 | M36: Gravel | N36: =IF('EZ ECell'!$E$8="Small Fleet","D7R",IF('EZ ECell'!$E$8="Large Fleet","D10R")) -> FALSE
A37: 4 | B37: =IF('EZ ECell'!F2="","",'EZ ECell'!F2) ->  | D37: =IF('EZ ECell'!F$12="","",SQRT('EZ ECell'!F$12*43560)) ->  | E37: =IF('EZ ECell'!F$12="","",SQRT('EZ ECell'!F$12*43560)) ->  | F37: ='EZ ECell'!F$13 -> 0 | G37: =G34 -> 3 | H37: 0 | I37: 0.02 | J37: 20 | K37: 0 | L37: 1 | M37: Gravel | N37: =IF('EZ ECell'!$F$8="Small Fleet","D7R",IF('EZ ECell'!$F$8="Large Fleet","D10R")) -> FALSE
A38: 5 | B38: =IF('EZ ECell'!G$2="","",'EZ ECell'!G$2) ->  | D38: =IF('EZ ECell'!G$12="","",SQRT('EZ ECell'!G$12*43560)) ->  | E38: =IF('EZ ECell'!G$12="","",SQRT('EZ ECell'!G$12*43560)) ->  | F38: ='EZ ECell'!G$13 -> 0 | G38: =G34 -> 3 | H38: 0 | I38: 0.02 | J38: 20 | K38: 0 | L38: 1 | M38: Gravel | N38: =IF('EZ ECell'!$G$8="Small Fleet","D7R",IF('EZ ECell'!$G$8="Large Fleet","D10R")) -> FALSE
A39: 6 | B39: =IF('EZ ECell'!H$2="","",'EZ ECell'!H$2) ->  | D39: =IF('EZ ECell'!H$12="","",SQRT('EZ ECell'!H$12*43560)) ->  | E39: =IF('EZ ECell'!H$12="","",SQRT('EZ ECell'!H$12*43560)) ->  | F39: ='EZ ECell'!H$13 -> 0 | G39: =G34 -> 3 | H39: 0 | I39: 0.02 | J39: 20 | K39: 0 | L39: 1 | M39: Gravel | N39: =IF('EZ ECell'!$H$8="Small Fleet","D7R",IF('EZ ECell'!$H$8="Large Fleet","D10R")) -> FALSE
A40: 7
A41: =A40+1 -> 8
A42: 9
A43: 10
A45: (1) Existing or Proposed Pond Dimensions
A46: (2) Max Berm Height at Center of Berm to Natural Ground, Assume Minimum Emb. Width 20 feet
B47: Comments:
A54: Evaporation Cell - User Input | E54: You must fill in ALL green cells and relevant blue cells in this section for each pond
C55: Pond Screening and Backfill (1)
A56: Description | C56: Backfill Source Material | D56: Backfill Material | E56: Distance from Backfill Borrow | F56: Slope from Facility to Borrow Area | G56: Backfill Equipment Fleet | H56: Fleet Override User Input | I56: Dozing Material | J56: Screen Material | K56: Screening Equipment Fleet | L56: Processing Material Losses(3)
C57: (select) | D57: (select) | E57: ft | F57: % grade | G57: (select) | I57: (select) | K57: (select) | L57: %
A58: =A34 -> 1 | B58: =B34 ->  | C58: Gravel | D58: 1 | E58: ='EZ ECell'!C$16 -> 0 | F58: ='EZ ECell'!$C$15 -> 0 | G58: =IF('EZ ECell'!$C$8="Small Fleet","769D 988G D7R",IF('EZ ECell'!$C$8="Large Fleet","777D 992G D7R")) -> FALSE | I58: 1 | J58: Yes | K58: =IF('EZ ECell'!$C$8="Small Fleet","988G",IF('EZ ECell'!$C$8="Large Fleet","992G")) -> FALSE | L58: 0.55
A59: =A35 -> 2 | C59: Gravel | D59: 1 | E59: ='EZ ECell'!D$16 -> 0 | F59: ='EZ ECell'!$D$15 -> 0 | G59: =IF('EZ ECell'!$D$8="Small Fleet","769D 988G D7R",IF('EZ ECell'!$D$8="Large Fleet","777D 992G D7R")) -> FALSE | I59: 1 | J59: Yes | K59: =IF('EZ ECell'!$D$8="Small Fleet","988G",IF('EZ ECell'!$D$8="Large Fleet","992G")) -> FALSE | L59: 0.55
A60: 3 | C60: Gravel | D60: 1 | E60: ='EZ ECell'!E$16 -> 0 | F60: ='EZ ECell'!$E$15 -> 0 | G60: =IF('EZ ECell'!$E$8="Small Fleet","769D 988G D7R",IF('EZ ECell'!$E$8="Large Fleet","777D 992G D7R")) -> FALSE | I60: 1 | J60: Yes | K60: =IF('EZ ECell'!$E$8="Small Fleet","988G",IF('EZ ECell'!$E$8="Large Fleet","992G")) -> FALSE | L60: 0.55
A61: 4 | C61: Gravel | D61: 1 | E61: ='EZ ECell'!F$16 -> 0 | F61: ='EZ ECell'!$F$15 -> 0 | G61: =IF('EZ ECell'!$F$8="Small Fleet","769D 988G D7R",IF('EZ ECell'!$F$8="Large Fleet","777D 992G D7R")) -> FALSE | I61: 1 | J61: Yes | K61: =IF('EZ ECell'!$F$8="Small Fleet","988G",IF('EZ ECell'!$F$8="Large Fleet","992G")) -> FALSE | L61: 0.55
A62: 5 | C62: Gravel | D62: 1 | E62: ='EZ ECell'!G$16 -> 0 | F62: ='EZ ECell'!$G$15 -> 0 | G62: =IF('EZ ECell'!$G$8="Small Fleet","769D 988G D7R",IF('EZ ECell'!$G$8="Large Fleet","777D 992G D7R")) -> FALSE | I62: 1 | J62: Yes | K62: =IF('EZ ECell'!$G$8="Small Fleet","988G",IF('EZ ECell'!$G$8="Large Fleet","992G")) -> FALSE | L62: 0.55
A63: 6 | C63: Gravel | D63: 1 | E63: ='EZ ECell'!H$16 -> 0 | F63: ='EZ ECell'!$H$15 -> 0 | G63: =IF('EZ ECell'!$H$8="Small Fleet","769D 988G D7R",IF('EZ ECell'!$H$8="Large Fleet","777D 992G D7R")) -> FALSE | I63: 1 | J63: Yes | K63: =IF('EZ ECell'!$H$8="Small Fleet","988G",IF('EZ ECell'!$H$8="Large Fleet","992G")) -> FALSE | L63: 0.55
A64: 7 | B64: 0
A65: 8 | B65: 0 | G65: `
A66: 9 | B66: 0
A67: 10 | B67: 0
B70: Comments:
A76: Evaporation Cell- User Input (cont.) Flat Areas Second Generation Considerations
C77: Growth Media | J77: Revegetation
A78: Description | C78: Additional Disturbance (Not in SRCE) | D78: Growth Media Thickness | E78: Distance from Growth Media Stockpile | F78: Slope from Facility to GM Stockpile | G78: Growth Media Material | H78: Growth Media Equipment Fleet | I78: Fleet Override User Input | J78: Average Long Dimension (rip dist.) | K78: Scarify/Rip? | L78: Seed Mix | M78: Mulch | N78: Fertilizer | O78: Ripping Fleet
C79: acres | D79: in | E79: ft | F79: % grade | G79: (select) | H79: (select) | J79: (ft) | K79: (select) | L79: (select) | M79: (select) | N79: (select) | O79: (select)
A80: =A34 -> 1 | D80: 24 | E80: ='EZ ECell'!$C$16 -> 0 | F80: ='EZ ECell'!$C$15 -> 0 | G80: Gravel | H80: =IF('EZ ECell'!$C$8="Small Fleet","769D 988G D7R",IF('EZ ECell'!$C$8="Large Fleet","777D 992G D7R")) -> FALSE | J80: =E34 ->  | L80: User Mix 1
A81: 2 | D81: 24 | E81: ='EZ ECell'!$D$16 -> 0 | F81: ='EZ ECell'!$D$15 -> 0 | G81: Gravel | H81: =IF('EZ ECell'!$D$8="Small Fleet","769D 988G D7R",IF('EZ ECell'!$D$8="Large Fleet","777D 992G D7R")) -> FALSE | L81: User Mix 1
A82: 3 | D82: 24 | E82: ='EZ ECell'!$E$16 -> 0 | F82: ='EZ ECell'!$E$15 -> 0 | G82: Gravel | H82: =IF('EZ ECell'!$E$8="Small Fleet","769D 988G D7R",IF('EZ ECell'!$E$8="Large Fleet","777D 992G D7R")) -> FALSE | L82: User Mix 1
A83: 4 | D83: 24 | E83: ='EZ ECell'!$F$16 -> 0 | F83: ='EZ ECell'!$F$15 -> 0 | G83: Gravel | H83: =IF('EZ ECell'!$F$8="Small Fleet","769D 988G D7R",IF('EZ ECell'!$F$8="Large Fleet","777D 992G D7R")) -> FALSE | L83: User Mix 1
A84: 5 | D84: 24 | E84: ='EZ ECell'!$G$16 -> 0 | F84: ='EZ ECell'!$G$15 -> 0 | G84: Gravel | H84: =IF('EZ ECell'!$G$8="Small Fleet","769D 988G D7R",IF('EZ ECell'!$G$8="Large Fleet","777D 992G D7R")) -> FALSE | L84: User Mix 1
A85: 6 | D85: 24 | E85: ='EZ ECell'!$H$16 -> 0 | F85: ='EZ ECell'!$H$15 -> 0 | G85: Gravel | H85: =IF('EZ ECell'!$H$8="Small Fleet","769D 988G D7R",IF('EZ ECell'!$H$8="Large Fleet","777D 992G D7R")) -> FALSE | L85: User Mix 1
B92: Comments:
A98: Evaporation Cell- User Input (cont.)
C99: Fence | D99: Liner | G99: Sludge Removal and Disposal | J99: HLP-Pond-Pond Piping
A100: Description | C100: Existing Fence Condition | D100: Primary Liner | E100: Secondary Liner | F100: Existing Pond | G100: Distance to Disposal Area | H100: Slope to Disposal Area | I100: Number of Trucks | J100: Piping Description | K100: Distance from HLP to Pond | L100: Slope from Source | M100: Distance to Next Ponds
D101: mil | E101: mil | F101: (select) | G101: ft | H101: % grade | K101: ft | L101: % grade | M101: ft
A102: =A34 -> 1 | D102: 60 mil HDPE | E102: 60 mil HDPE | F102: ='EZ ECell'!C$10 -> 0 | G102: ='EZ ECell'!$C$16 -> 0 | H102: ='EZ ECell'!$C$15 -> 0 | I102: 1 | K102: 500 | L102: 0
A103: 2 | D103: =D102 -> 60 mil HDPE | E103: =E102 -> 60 mil HDPE | F103: ='EZ ECell'!D$10 -> 0 | G103: ='EZ ECell'!$D$16 -> 0 | H103: ='EZ ECell'!$D$15 -> 0 | I103: 1 | K103: 500 | L103: 0
A104: 3 | D104: =D102 -> 60 mil HDPE | E104: =E102 -> 60 mil HDPE | F104: ='EZ ECell'!E$10 -> 0 | G104: ='EZ ECell'!$E$16 -> 0 | H104: ='EZ ECell'!$E$15 -> 0 | I104: 1 | K104: 500 | L104: 0
A105: 4 | D105: =D102 -> 60 mil HDPE | E105: =E102 -> 60 mil HDPE | F105: ='EZ ECell'!F$10 -> 0 | G105: ='EZ ECell'!$F$16 -> 0 | H105: ='EZ ECell'!$F$15 -> 0 | I105: 1 | K105: 500 | L105: 0
A106: 5 | D106: =D102 -> 60 mil HDPE | E106: =E102 -> 60 mil HDPE | F106: ='EZ ECell'!G$10 -> 0 | G106: ='EZ ECell'!$G$16 -> 0 | H106: ='EZ ECell'!$G$15 -> 0 | I106: 1 | K106: 500 | L106: 0
A107: 6 | D107: =D102 -> 60 mil HDPE | E107: =E102 -> 60 mil HDPE | F107: ='EZ ECell'!H$10 -> 0 | G107: ='EZ ECell'!$H$16 -> 0 | H107: ='EZ ECell'!$H$15 -> 0 | I107: 1 | K107: 500 | L107: 0
A108: 7 | B108: 0
A109: 8 | B109: 0
A110: 9 | B110: 0
A111: 10 | B111: 0
B114: Comments:
A121: Sludge Removal and Disposal, 5000 gal Vacuum Truck
A123: Description (required) | C123: (2) Sludge Volume | D123: Fleet Productivity | E123: Number of Vacuum Trucks | F123: Total Fleet Hours | G123: Total Labor & Equipment Cost | H123: Total Sludge Removal Cost | I123: Unit Cost
C124: cy | D124: cy/hr | F124: hrs | I124: $/cy
A125: =A34 -> 1 | C125: =IF(B34="",0,IF(F102="New Pond",F102,((((E34-(2*F34*G34))+G34)/2/G34)*((E34-(2*F34*G34))+G34)/6*((2*((D34-(2*F34*G34))+G34))+(((D34-(2*F34*G34))+G34)-((E34-(2*F34*G34))+G34)))-(((((E34-(2*F34*G34))+G34)/2/G34)-0.5)*(((E34-(2*F34*G34))+G34)-(2*0.5*G34))*(2*(((D34-(2*F34*G34))+G34)-(2*0.5*G34))+(((D34-(2*F34*G34))+G34)-((E34-(2*F34*G34))+G34)))/6))/27)) -> 0 | D125: =IF(B34="",0,IF(C125="New Pond",0,(C125/((2*(G102/5280)/7)*(C125/24.75)+(0.75*C125/24.75))))*E125) -> 0 | E125: =IF(D34="",0,IF(C125="New Pond",0,IF(I102="",1,I102))) -> 0 | F125: =IF(C125="New Pond",0,(2*(G102/5280)/7)*(C125/24.75)+(0.75*C125/24.75)) -> 0 | G125: =F125*'Unit Costs'!$D$55 -> 0 | H125: =G125 -> 0 | I125: =IF(B125="",0,IF(F102="New Pond",0,H125/C125)) -> 0
A126: 2 | C126: 0 | D126: =IF(B35="",0,IF(C126="New Pond",0,(C126/((2*(G103/5280)/7)*(C126/24.75)+(0.75*C126/24.75))))*E126) -> 0 | E126: =IF(D35="",0,IF(C126="New Pond",0,IF(I103="",1,I103))) -> 0 | F126: =IF(C126="New Pond",0,(2*(G103/5280)/7)*(C126/24.75)+(0.75*C126/24.75)) -> 0 | G126: =F126*'Unit Costs'!$D$55 -> 0 | H126: 0 | I126: 0
A127: 3 | C127: 0 | D127: 0 | E127: 0 | F127: 0 | G127: =F127*'Unit Costs'!$D$55 -> 0 | H127: 0 | I127: 0
A128: 4 | C128: 0 | D128: 0 | E128: 0 | F128: 0 | G128: =F128*'Unit Costs'!$D$55 -> 0 | H128: 0 | I128: 0
A129: 5 | C129: 0 | D129: 0 | E129: 0 | F129: 0 | G129: =F129*'Unit Costs'!$D$55 -> 0 | H129: 0 | I129: 0
A130: 6 | C130: 0 | D130: 0 | E130: 0 | F130: 0 | G130: =F130*'Unit Costs'!$D$55 -> 0 | H130: 0 | I130: 0
C131: =SUM(C125:C130) -> 0 | F131: =SUM(F125:F130) -> 0 | G131: =SUM(G125:G130) -> 0 | H131: =SUM(H125:H130) -> 0
B133: (2) Sludge Volume assumes a 0.5 ft layer of sludge on all existing ponds.
A136: Existing Liner Inspection and Repair
A138: Description (required) | C138: Liner Area | D138: Crew Hours | E138: Total Labor Cost | F138: Total Equipment Cost | G138: Total Material Cost | H138: Total Liner Installation Cost | I138: Unit Cost
C139: sf | D139: hrs | I139: $/sf
A140: =A34 -> 1 | C140: =IF(D34="",0,(IF(F102="Single Liner",((D34-(2*F34*G34))*(E34-(2*F34*G34))+SQRT((F34)^2+(2*F34*G34)^2)*((D34+(D34-(2*F34*G34)))+(E34+(E34-(2*F34*G34))))/2+8*(D34+4)+8*(E34+4)),IF(F102="Double Liner",((D34-(2*F34*G34))*(E34-(2*F34*G34))+SQRT((F34)^2+(2*F34*G34)^2)*((D34+(D34-(2*F34*G34)))+(E34+(E34-(2*F34*G34))))/2+8*(D34+4)+8*(E34+4)),"No Ex Liner")))) -> 0 | D140: =IF(D34="",0,IF(C140="No Ex Liner",0,C140/'Unit Costs'!F$70/8)) -> 0 | E140: ='Unit Costs'!$C$23*D140 -> 0 | F140: ='Unit Costs'!$B$23*D140 -> 0 | G140: =IF(C140="No Ex Liner",0,'Unit Costs'!G$70*C140/100) -> 0 | H140: =SUM(E140:G140) -> 0 | I140: =IF(C140=0,0,IF(C140="No Ex Liner",0,H140/C140)) -> 0
A141: 2 | C141: 0 | D141: =IF(D35="",0,IF(C141="No Ex Liner",0,C141/'Unit Costs'!F$70/8)) -> 0 | E141: ='Unit Costs'!$C$23*D141 -> 0 | F141: ='Unit Costs'!$B$23*D141 -> 0 | G141: =IF(C141="No Ex Liner",0,'Unit Costs'!G$70*C141/100) -> 0 | H141: 0 | I141: 0
A142: 3 | C142: 0 | D142: =IF(D36="",0,IF(C142="No Ex Liner",0,C142/'Unit Costs'!F$70/8)) -> 0 | E142: ='Unit Costs'!$C$23*D142 -> 0 | F142: ='Unit Costs'!$B$23*D142 -> 0 | G142: =IF(C142="No Ex Liner",0,'Unit Costs'!G$70*C142/100) -> 0 | H142: 0 | I142: 0
A143: 4 | C143: 0 | D143: =IF(D37="",0,IF(C143="No Ex Liner",0,C143/'Unit Costs'!F$70/8)) -> 0 | E143: ='Unit Costs'!$C$23*D143 -> 0 | F143: ='Unit Costs'!$B$23*D143 -> 0 | G143: =IF(C143="No Ex Liner",0,'Unit Costs'!G$70*C143/100) -> 0 | H143: 0 | I143: 0
A144: 5 | C144: 0 | D144: =IF(D38="",0,IF(C144="No Ex Liner",0,C144/'Unit Costs'!F$70/8)) -> 0 | E144: ='Unit Costs'!$C$23*D144 -> 0 | F144: ='Unit Costs'!$B$23*D144 -> 0 | G144: =IF(C144="No Ex Liner",0,'Unit Costs'!G$70*C144/100) -> 0 | H144: 0 | I144: 0
A145: 6 | C145: 0 | D145: =IF(D39="",0,IF(C145="No Ex Liner",0,C145/'Unit Costs'!F$70/8)) -> 0 | E145: ='Unit Costs'!$C$23*D145 -> 0 | F145: ='Unit Costs'!$B$23*D145 -> 0 | G145: =IF(C145="No Ex Liner",0,'Unit Costs'!G$70*C145/100) -> 0 | H145: 0 | I145: 0
C146: =SUM(C140:C145) -> 0 | D146: =SUM(D140:D145) -> 0 | E146: 0 | F146: 0 | G146: 0 | H146: 0
A151: Evaporation Ponds - Construction/Grading Costs
B152: Productivity = Excavator Productivity x Grade Correction x Density Correction x Operator (0.75) x Material x Visibility x Job Efficiency (0.83) | L152: Earthwork
A154: Description (required) | C154: Regrading Volume | D154: Dozing Distance (see above) | E154: Excavation Fleet | F154: Uncorrected Dozer Productivity | G154: Grade Correction | H154: Density Correction | I154: Excavating Material | J154: Corrected Productivity | K154: Total Dozer Hours | L154: (BR)Total Labor Cost | M154: Total Equipment Cost | N154: Total Const./ Regrading Cost | O154: Unit Cost
C155: BCY | D155: ft | F155: LCY/hr | J155: LCY/hr | K155: hr | L155: $ | M155: $ | N155: $ | O155: $/cy
A156: =A34 -> 1 | C156: =IF(D34="",0,IF(F102="New Pond",(((J34+(J34+(2*K34*G34)))*(K34/2))*1.5*D34/27/1.25),"Existing Pond")) -> 0 | D156: =IF(B156="",0,IF(C156="Existing Pond",0,IF(E34>400,400,E34))) -> 0 | E156: =IF(B156="",0,IF(D156="Existing Pond","",N34)) -> 0 | F156: =IF(C156="Existing Pond",0,IF(D34="",0,IF(N34=F$661,22719*D156^-0.7796,IF(N34=F$662,89889*D156^-0.9425,81639*D156^-0.8502)))) -> 0 | G156: =IF(C156="Existing Pond",0,IF(D34="",0,1)) -> 0 | H156: =IF(C156="Existing Pond",0,IF(D34="",0,IF(M34="alluvium",0.79,IF(M34="Basalt",0.7,IF(M34="Clay - Dry",0.92,IF(M34="Granite - broken",0.82,IF(M34="Gravel",0.9,IF(M34="LS - broken",0.88,IF(M34="Sandstone",0.9,IF(M34="Shale",1.1,IF(M34="Stone - crushed",0.85,IF(M34="Tailings - Coarse (dry, loose sand)",0.96,IF(M34="Tailings - Slimes (loose sand & clay)",0.85,IF(M34="Topsoil",1.44,"Select Material")))))))))))))) -> 0 | I156: =IF(C156="Existing Pond",0,L34) -> 1 | J156: =IF(D34="",0,F156*G156*H156*0.75*I156*0.83) -> 0 | K156: =IF(F102="New Pond",ROUND(C156/J156,0),0) -> 0 | L156: =IF(B156="",0,IF(B156=0,0,IF(C156="Existing Pond",0,K156*(IF(N34=F$661,('Unit Costs'!B$35),IF(N34=F$662,('Unit Costs'!B$34),IF(N34=F$663,('Unit Costs'!B$33),"Select Fleet"))))))) -> 0 | M156: =IF(B156="",0,IF(B156=0,0,IF(C156="Existing Pond",0,K156*IF(N34=F$661,('Unit Costs'!C$35),IF(N34=F$662,('Unit Costs'!C$34),IF(N34=F$663,('Unit Costs'!C$33),"Select Fleet")))))) -> 0 | N156: =SUM(L156:M156) -> 0 | O156: =IF(B156="",0,IF(C156="Existing Pond",0,N156/C156)) -> 0
A157: 2 | C157: 0 | D157: 0 | E157: 0 | F157: 0 | G157: 0 | H157: 0 | I157: 1 | J157: 0 | K157: 0 | L157: =IF(B157="",0,IF(B157=0,0,IF(C157="Existing Pond",0,K157*(IF(N35=F$661,('Unit Costs'!B$35),IF(N35=F$662,('Unit Costs'!B$34),IF(N35=F$663,('Unit Costs'!B$33),"Select Fleet"))))))) -> 0 | M157: =IF(B157="",0,IF(B157=0,0,IF(C157="Existing Pond",0,K157*IF(N35=F$661,('Unit Costs'!C$35),IF(N35=F$662,('Unit Costs'!C$34),IF(N35=F$663,('Unit Costs'!C$33),"Select Fleet")))))) -> 0 | N157: 0 | O157: =IF(B157="",0,IF(C157="Existing Pond",0,N157/C157)) -> 0
A158: 3 | C158: 0 | D158: 0 | E158: 0 | F158: 0 | G158: 0 | H158: 0 | I158: 1 | J158: 0 | K158: 0 | L158: =IF(B158="",0,IF(B158=0,0,IF(C158="Existing Pond",0,K158*(IF(N36=F$661,('Unit Costs'!B$35),IF(N36=F$662,('Unit Costs'!B$34),IF(N36=F$663,('Unit Costs'!B$33),"Select Fleet"))))))) -> 0 | M158: =IF(B158="",0,IF(B158=0,0,IF(C158="Existing Pond",0,K158*IF(N36=F$661,('Unit Costs'!C$35),IF(N36=F$662,('Unit Costs'!C$34),IF(N36=F$663,('Unit Costs'!C$33),"Select Fleet")))))) -> 0 | N158: 0 | O158: 0
A159: 4 | C159: 0 | D159: 0 | E159: 0 | F159: 0 | G159: 0 | H159: 0 | I159: 1 | J159: 0 | K159: 0 | L159: =IF(B159="",0,IF(B159=0,0,IF(C159="Existing Pond",0,K159*(IF(N37=F$661,('Unit Costs'!B$35),IF(N37=F$662,('Unit Costs'!B$34),IF(N37=F$663,('Unit Costs'!B$33),"Select Fleet"))))))) -> 0 | M159: =IF(B159="",0,IF(B159=0,0,IF(C159="Existing Pond",0,K159*IF(N37=F$661,('Unit Costs'!C$35),IF(N37=F$662,('Unit Costs'!C$34),IF(N37=F$663,('Unit Costs'!C$33),"Select Fleet")))))) -> 0 | N159: 0 | O159: 0
A160: 5 | C160: 0 | D160: 0 | E160: 0 | F160: 0 | G160: 0 | H160: 0 | I160: 1 | J160: 0 | K160: 0 | L160: =IF(B160="",0,IF(B160=0,0,IF(C160="Existing Pond",0,K160*(IF(N38=F$661,('Unit Costs'!B$35),IF(N38=F$662,('Unit Costs'!B$34),IF(N38=F$663,('Unit Costs'!B$33),"Select Fleet"))))))) -> 0 | M160: =IF(B160="",0,IF(B160=0,0,IF(C160="Existing Pond",0,K160*IF(N38=F$661,('Unit Costs'!C$35),IF(N38=F$662,('Unit Costs'!C$34),IF(N38=F$663,('Unit Costs'!C$33),"Select Fleet")))))) -> 0 | N160: 0 | O160: 0
A161: 6 | C161: 0 | D161: 0 | E161: 0 | F161: 0 | G161: 0 | H161: 0 | I161: 1 | J161: 0 | K161: 0 | L161: =IF(B161="",0,IF(B161=0,0,IF(C161="Existing Pond",0,K161*(IF(N39=F$661,('Unit Costs'!B$35),IF(N39=F$662,('Unit Costs'!B$34),IF(N39=F$663,('Unit Costs'!B$33),"Select Fleet"))))))) -> 0 | M161: =IF(B161="",0,IF(B161=0,0,IF(C161="Existing Pond",0,K161*IF(N39=F$661,('Unit Costs'!C$35),IF(N39=F$662,('Unit Costs'!C$34),IF(N39=F$663,('Unit Costs'!C$33),"Select Fleet")))))) -> 0 | N161: 0 | O161: 0
C162: =SUM(C156:C161) -> 0 | K162: =SUM(K156:K161) -> 0 | L162: =SUM(L156:L161) -> 0 | M162: =SUM(M156:M161) -> 0 | N162: =SUM(N156:N161) -> 0
A164: Productivity = Dozer Productivity x Grade Correction x Density Correction x Operator (0.75) x Material x Visibility x Job Efficiency (0.83)
A167: Bottom (Secondary) Liner Installation (New Pond or Unlined Only) | K167: `
A169: Description (required) | C169: Liner Area | D169: Crew Hours | E169: Total Labor Cost | F169: Total Equipment Cost | G169: Total Material Cost | H169: Total Liner Installation Cost | I169: Unit Cost
C170: sf | D170: hrs | I170: $/sf
A171: =A34 -> 1 | C171: =IF(D34="",0,IF(OR(F102="New Pond",F102="Unlined"),(D34-(2*F34*G34))*(E34-(2*F34*G34))+SQRT((F34)^2+(2*F34*G34)^2)*((D34+(D34-(2*F34*G34)))+(E34+(E34-(2*F34*G34))))/2+8*(D34+4)+8*(E34+4),"Ex Primary")) -> 0 | D171: =IF(B171="","",IF(C171="Ex Primary",0,(8*C171/('Unit Costs'!F$63+'Unit Costs'!F$64+(IF(E102=M$643,'Unit Costs'!F$66,IF(E102=M$644,'Unit Costs'!F$67,IF(E102=M$645,'Unit Costs'!F$68,IF(E102=M$646,'Unit Costs'!F$69,IF(E102=M$647,'Unit Costs'!F$70,"Select Liner")))))))))) ->  | E171: =IF(C171="Ex Primary",0,((IF(E102=M$643,'Unit Costs'!H$66,IF(E102=M$644,'Unit Costs'!H$67,IF(E102=M$645,'Unit Costs'!H$68,IF(E102=M$646,'Unit Costs'!H$69,IF(E102=M$647,'Unit Costs'!H$70,"Select Liner"))))))+('Unit Costs'!H$63+'Unit Costs'!H$64))*C171) -> 0 | F171: =IF(C171="Ex Primary",0,((IF(E102=M$643,'Unit Costs'!I$66,IF(E102=M$644,'Unit Costs'!I$67,IF(E102=M$645,'Unit Costs'!I$68,IF(E102=M$646,'Unit Costs'!I$69,IF(E102=M$647,'Unit Costs'!I$70,"Select Liner"))))))+('Unit Costs'!I$63+'Unit Costs'!I$64))*C171) -> 0 | G171: =IF(C171="Ex Primary",0,(IF(E102=M$643,'Unit Costs'!G$66,IF(E102=M$644,'Unit Costs'!G$67,IF(E102=M$645,'Unit Costs'!G$68,IF(E102=M$646,'Unit Costs'!G$69,IF(E102=M$647,'Unit Costs'!G$70,"Select Liner"))))))*C171) -> 0 | H171: =SUM(E171:G171) -> 0 | I171: =IF(C171=0,0,IF(C171="Ex Primary",0,H171/C171)) -> 0
A172: 2 | C172: 0 | D172: =IF(B172="","",IF(C172="Ex Primary",0,(8*C172/('Unit Costs'!F$63+'Unit Costs'!F$64+(IF(E103=M$643,'Unit Costs'!F$66,IF(E103=M$644,'Unit Costs'!F$67,IF(E103=M$645,'Unit Costs'!F$68,IF(E103=M$646,'Unit Costs'!F$69,IF(E103=M$647,'Unit Costs'!F$70,"Select Liner")))))))))) ->  | E172: =IF(C172="Ex Primary",0,((IF(E103=M$643,'Unit Costs'!H$66,IF(E103=M$644,'Unit Costs'!H$67,IF(E103=M$645,'Unit Costs'!H$68,IF(E103=M$646,'Unit Costs'!H$69,IF(E103=M$647,'Unit Costs'!H$70,"Select Liner"))))))+('Unit Costs'!H$63+'Unit Costs'!H$64))*C172) -> 0 | F172: =IF(C172="Ex Primary",0,((IF(E103=M$643,'Unit Costs'!I$66,IF(E103=M$644,'Unit Costs'!I$67,IF(E103=M$645,'Unit Costs'!I$68,IF(E103=M$646,'Unit Costs'!I$69,IF(E103=M$647,'Unit Costs'!I$70,"Select Liner"))))))+('Unit Costs'!I$63+'Unit Costs'!I$64))*C172) -> 0 | G172: =IF(C172="Ex Primary",0,(IF(E103=M$643,'Unit Costs'!G$66,IF(E103=M$644,'Unit Costs'!G$67,IF(E103=M$645,'Unit Costs'!G$68,IF(E103=M$646,'Unit Costs'!G$69,IF(E103=M$647,'Unit Costs'!G$70,"Select Liner"))))))*C172) -> 0 | H172: 0 | I172: =IF(C172=0,0,IF(C172="Ex Primary",0,H172/C172)) -> 0
A173: 3 | C173: 0 | D173: =IF(B173="","",IF(C173="Ex Primary",0,(8*C173/('Unit Costs'!F$63+'Unit Costs'!F$64+(IF(E104=M$643,'Unit Costs'!F$66,IF(E104=M$644,'Unit Costs'!F$67,IF(E104=M$645,'Unit Costs'!F$68,IF(E104=M$646,'Unit Costs'!F$69,IF(E104=M$647,'Unit Costs'!F$70,"Select Liner")))))))))) ->  | E173: =IF(C173="Ex Primary",0,((IF(E104=M$643,'Unit Costs'!H$66,IF(E104=M$644,'Unit Costs'!H$67,IF(E104=M$645,'Unit Costs'!H$68,IF(E104=M$646,'Unit Costs'!H$69,IF(E104=M$647,'Unit Costs'!H$70,"Select Liner"))))))+('Unit Costs'!H$63+'Unit Costs'!H$64))*C173) -> 0 | F173: =IF(C173="Ex Primary",0,((IF(E104=M$643,'Unit Costs'!I$66,IF(E104=M$644,'Unit Costs'!I$67,IF(E104=M$645,'Unit Costs'!I$68,IF(E104=M$646,'Unit Costs'!I$69,IF(E104=M$647,'Unit Costs'!I$70,"Select Liner"))))))+('Unit Costs'!I$63+'Unit Costs'!I$64))*C173) -> 0 | G173: =IF(C173="Ex Primary",0,(IF(E104=M$643,'Unit Costs'!G$66,IF(E104=M$644,'Unit Costs'!G$67,IF(E104=M$645,'Unit Costs'!G$68,IF(E104=M$646,'Unit Costs'!G$69,IF(E104=M$647,'Unit Costs'!G$70,"Select Liner"))))))*C173) -> 0 | H173: 0 | I173: 0
A174: 4 | C174: 0 | D174: =IF(B174="","",IF(C174="Ex Primary",0,(8*C174/('Unit Costs'!F$63+'Unit Costs'!F$64+(IF(E105=M$643,'Unit Costs'!F$66,IF(E105=M$644,'Unit Costs'!F$67,IF(E105=M$645,'Unit Costs'!F$68,IF(E105=M$646,'Unit Costs'!F$69,IF(E105=M$647,'Unit Costs'!F$70,"Select Liner")))))))))) ->  | E174: =IF(C174="Ex Primary",0,((IF(E105=M$643,'Unit Costs'!H$66,IF(E105=M$644,'Unit Costs'!H$67,IF(E105=M$645,'Unit Costs'!H$68,IF(E105=M$646,'Unit Costs'!H$69,IF(E105=M$647,'Unit Costs'!H$70,"Select Liner"))))))+('Unit Costs'!H$63+'Unit Costs'!H$64))*C174) -> 0 | F174: =IF(C174="Ex Primary",0,((IF(E105=M$643,'Unit Costs'!I$66,IF(E105=M$644,'Unit Costs'!I$67,IF(E105=M$645,'Unit Costs'!I$68,IF(E105=M$646,'Unit Costs'!I$69,IF(E105=M$647,'Unit Costs'!I$70,"Select Liner"))))))+('Unit Costs'!I$63+'Unit Costs'!I$64))*C174) -> 0 | G174: =IF(C174="Ex Primary",0,(IF(E105=M$643,'Unit Costs'!G$66,IF(E105=M$644,'Unit Costs'!G$67,IF(E105=M$645,'Unit Costs'!G$68,IF(E105=M$646,'Unit Costs'!G$69,IF(E105=M$647,'Unit Costs'!G$70,"Select Liner"))))))*C174) -> 0 | H174: 0 | I174: 0
A175: 5 | C175: 0 | D175: =IF(B175="","",IF(C175="Ex Primary",0,(8*C175/('Unit Costs'!F$63+'Unit Costs'!F$64+(IF(E106=M$643,'Unit Costs'!F$66,IF(E106=M$644,'Unit Costs'!F$67,IF(E106=M$645,'Unit Costs'!F$68,IF(E106=M$646,'Unit Costs'!F$69,IF(E106=M$647,'Unit Costs'!F$70,"Select Liner")))))))))) ->  | E175: =IF(C175="Ex Primary",0,((IF(E106=M$643,'Unit Costs'!H$66,IF(E106=M$644,'Unit Costs'!H$67,IF(E106=M$645,'Unit Costs'!H$68,IF(E106=M$646,'Unit Costs'!H$69,IF(E106=M$647,'Unit Costs'!H$70,"Select Liner"))))))+('Unit Costs'!H$63+'Unit Costs'!H$64))*C175) -> 0 | F175: =IF(C175="Ex Primary",0,((IF(E106=M$643,'Unit Costs'!I$66,IF(E106=M$644,'Unit Costs'!I$67,IF(E106=M$645,'Unit Costs'!I$68,IF(E106=M$646,'Unit Costs'!I$69,IF(E106=M$647,'Unit Costs'!I$70,"Select Liner"))))))+('Unit Costs'!I$63+'Unit Costs'!I$64))*C175) -> 0 | G175: =IF(C175="Ex Primary",0,(IF(E106=M$643,'Unit Costs'!G$66,IF(E106=M$644,'Unit Costs'!G$67,IF(E106=M$645,'Unit Costs'!G$68,IF(E106=M$646,'Unit Costs'!G$69,IF(E106=M$647,'Unit Costs'!G$70,"Select Liner"))))))*C175) -> 0 | H175: 0 | I175: 0
A176: 6 | C176: 0 | D176: =IF(B176="","",IF(C176="Ex Primary",0,(8*C176/('Unit Costs'!F$63+'Unit Costs'!F$64+(IF(E107=M$643,'Unit Costs'!F$66,IF(E107=M$644,'Unit Costs'!F$67,IF(E107=M$645,'Unit Costs'!F$68,IF(E107=M$646,'Unit Costs'!F$69,IF(E107=M$647,'Unit Costs'!F$70,"Select Liner")))))))))) ->  | E176: =IF(C176="Ex Primary",0,((IF(E107=M$643,'Unit Costs'!H$66,IF(E107=M$644,'Unit Costs'!H$67,IF(E107=M$645,'Unit Costs'!H$68,IF(E107=M$646,'Unit Costs'!H$69,IF(E107=M$647,'Unit Costs'!H$70,"Select Liner"))))))+('Unit Costs'!H$63+'Unit Costs'!H$64))*C176) -> 0 | F176: =IF(C176="Ex Primary",0,((IF(E107=M$643,'Unit Costs'!I$66,IF(E107=M$644,'Unit Costs'!I$67,IF(E107=M$645,'Unit Costs'!I$68,IF(E107=M$646,'Unit Costs'!I$69,IF(E107=M$647,'Unit Costs'!I$70,"Select Liner"))))))+('Unit Costs'!I$63+'Unit Costs'!I$64))*C176) -> 0 | G176: =IF(C176="Ex Primary",0,(IF(E107=M$643,'Unit Costs'!G$66,IF(E107=M$644,'Unit Costs'!G$67,IF(E107=M$645,'Unit Costs'!G$68,IF(E107=M$646,'Unit Costs'!G$69,IF(E107=M$647,'Unit Costs'!G$70,"Select Liner"))))))*C176) -> 0 | H176: 0 | I176: 0
C177: =SUM(C171:C176) -> 0 | D177: 0 | E177: 0 | F177: 0 | G177: 0 | H177: 0
B179: Liners and GeoNetting costs include additional 15% for Installation QA/QC
A182: Geonetting
A184: Description (required) | C184: Geonetting Area | D184: Crew Hours | E184: Total Labor Cost | F184: Total Equipment Cost | G184: Total Material Cost | H184: Total Installation Cost | I184: Unit Cost
C185: sf | D185: hrs | I185: $/sf
A186: =A34 -> 1 | C186: =IF(D34="",0,IF(F102="Double Liner",F102,IF(F102="Single Liner",((D34-(2*F34*G34))*(E34-(2*F34*G34))+SQRT((F34)^2+(2*F34*G34)^2)*((D34+(D34-(2*F34*G34)))+(E34+(E34-(2*F34*G34))))/2+8*(D34+4)+8*(E34+4)),IF(E102=$M$645,"Drain Liner",((D34-(2*F34*G34))*(E34-(2*F34*G34))+SQRT((F34)^2+(2*F34*G34)^2)*((D34+(D34-(2*F34*G34)))+(E34+(E34-(2*F34*G34))))/2+8*(D34+4)+8*(E34+4)))))) -> 0 | D186: =IF(F102="Double Liner",0,IF(F102="Single Liner",C186/'Unit Costs'!F$67,IF(E102=$M$645,0,C186/'Unit Costs'!F$67))) -> 0 | E186: =IF(F102="Double Liner",0,IF(F102="Single Liner",'Unit Costs'!H$67*C186*0.9,IF(E102=$M$645,0,'Unit Costs'!H$67*C186*0.9))) -> 0 | F186: =IF(F102="Double Liner",0,IF(F102="Single Liner",'Unit Costs'!I$67*C186*0.9,IF(E102=$M$645,0,'Unit Costs'!I$67*C186*0.9))) -> 0 | G186: =IF(F102="Double Liner",0,IF(F102="Single Liner",'Unit Costs'!G$67*C186*0.9,IF(E102=$M$645,0,'Unit Costs'!G$67*C186*0.9))) -> 0 | H186: =SUM(E186:G186) -> 0 | I186: =IF(C186=0,0,IF(C186="Double Liner",0,IF(F102="Single Liner",H186/C186,IF(E102=$M$645,0,H186/C186)))) -> 0
A187: 2 | C187: =IF(D35="",0,IF(F103="Double Liner",F103,IF(F103="Single Liner",((D35-(2*F35*G35))*(E35-(2*F35*G35))+SQRT((F35)^2+(2*F35*G35)^2)*((D35+(D35-(2*F35*G35)))+(E35+(E35-(2*F35*G35))))/2+8*(D35+4)+8*(E35+4)),IF(E103=$M$645,"Drain Liner",((D35-(2*F35*G35))*(E35-(2*F35*G35))+SQRT((F35)^2+(2*F35*G35)^2)*((D35+(D35-(2*F35*G35)))+(E35+(E35-(2*F35*G35))))/2+8*(D35+4)+8*(E35+4)))))) -> 0 | D187: =IF(F103="Double Liner",0,IF(F103="Single Liner",C187/'Unit Costs'!F$67,IF(E103=$M$645,0,C187/'Unit Costs'!F$67))) -> 0 | E187: =IF(F103="Double Liner",0,IF(F103="Single Liner",'Unit Costs'!H$67*C187*0.9,IF(E103=$M$645,0,'Unit Costs'!H$67*C187*0.9))) -> 0 | F187: =IF(F103="Double Liner",0,IF(F103="Single Liner",'Unit Costs'!I$67*C187*0.9,IF(E103=$M$645,0,'Unit Costs'!I$67*C187*0.9))) -> 0 | G187: =IF(F103="Double Liner",0,IF(F103="Single Liner",'Unit Costs'!G$67*C187*0.9,IF(E103=$M$645,0,'Unit Costs'!G$67*C187*0.9))) -> 0 | H187: =SUM(E187:G187) -> 0 | I187: =IF(C187=0,0,IF(C187="Double Liner",0,IF(F103="Single Liner",H187/C187,IF(E103=$M$645,0,H187/C187)))) -> 0
A188: 3 | C188: 0 | D188: =IF(F104="Double Liner",0,IF(F104="Single Liner",C188/'Unit Costs'!F$67,IF(E104=$M$645,0,C188/'Unit Costs'!F$67))) -> 0 | E188: =IF(F104="Double Liner",0,IF(F104="Single Liner",'Unit Costs'!H$67*C188*0.9,IF(E104=$M$645,0,'Unit Costs'!H$67*C188*0.9))) -> 0 | F188: =IF(F104="Double Liner",0,IF(F104="Single Liner",'Unit Costs'!I$67*C188*0.9,IF(E104=$M$645,0,'Unit Costs'!I$67*C188*0.9))) -> 0 | G188: =IF(F104="Double Liner",0,IF(F104="Single Liner",'Unit Costs'!G$67*C188*0.9,IF(E104=$M$645,0,'Unit Costs'!G$67*C188*0.9))) -> 0 | H188: 0 | I188: 0
A189: 4 | C189: 0 | D189: =IF(F105="Double Liner",0,IF(F105="Single Liner",C189/'Unit Costs'!F$67,IF(E105=$M$645,0,C189/'Unit Costs'!F$67))) -> 0 | E189: =IF(F105="Double Liner",0,IF(F105="Single Liner",'Unit Costs'!H$67*C189*0.9,IF(E105=$M$645,0,'Unit Costs'!H$67*C189*0.9))) -> 0 | F189: =IF(F105="Double Liner",0,IF(F105="Single Liner",'Unit Costs'!I$67*C189*0.9,IF(E105=$M$645,0,'Unit Costs'!I$67*C189*0.9))) -> 0 | G189: =IF(F105="Double Liner",0,IF(F105="Single Liner",'Unit Costs'!G$67*C189*0.9,IF(E105=$M$645,0,'Unit Costs'!G$67*C189*0.9))) -> 0 | H189: 0 | I189: 0
A190: 5 | C190: 0 | D190: =IF(F106="Double Liner",0,IF(F106="Single Liner",C190/'Unit Costs'!F$67,IF(E106=$M$645,0,C190/'Unit Costs'!F$67))) -> 0 | E190: =IF(F106="Double Liner",0,IF(F106="Single Liner",'Unit Costs'!H$67*C190*0.9,IF(E106=$M$645,0,'Unit Costs'!H$67*C190*0.9))) -> 0 | F190: =IF(F106="Double Liner",0,IF(F106="Single Liner",'Unit Costs'!I$67*C190*0.9,IF(E106=$M$645,0,'Unit Costs'!I$67*C190*0.9))) -> 0 | G190: =IF(F106="Double Liner",0,IF(F106="Single Liner",'Unit Costs'!G$67*C190*0.9,IF(E106=$M$645,0,'Unit Costs'!G$67*C190*0.9))) -> 0 | H190: 0 | I190: 0
A191: 6 | C191: 0 | D191: =IF(F107="Double Liner",0,IF(F107="Single Liner",C191/'Unit Costs'!F$67,IF(E107=$M$645,0,C191/'Unit Costs'!F$67))) -> 0 | E191: =IF(F107="Double Liner",0,IF(F107="Single Liner",'Unit Costs'!H$67*C191*0.9,IF(E107=$M$645,0,'Unit Costs'!H$67*C191*0.9))) -> 0 | F191: =IF(F107="Double Liner",0,IF(F107="Single Liner",'Unit Costs'!I$67*C191*0.9,IF(E107=$M$645,0,'Unit Costs'!I$67*C191*0.9))) -> 0 | G191: =IF(F107="Double Liner",0,IF(F107="Single Liner",'Unit Costs'!G$67*C191*0.9,IF(E107=$M$645,0,'Unit Costs'!G$67*C191*0.9))) -> 0 | H191: 0 | I191: 0
C192: =SUM(C186:C191) -> 0 | D192: 0 | E192: 0 | F192: 0 | G192: 0 | H192: 0
B194: Geonetting; Labor, Equip and Material Cost Assumed to be 90% cost on 60 mil HDPE.
A197: Top (Primary) Liner Installation
A199: Description (required) | C199: Liner Area | D199: Crew Hours | E199: Total Labor Cost | F199: Total Equipment Cost | G199: Total Material Cost | H199: Total Liner Installation Cost | I199: Unit Cost
C200: sf | D200: hrs | I200: $/sf
A201: =A34 -> 1 | C201: =IF(F102="Double Liner","Double Liner",IF(D34="",0,((D34-(2*F34*G34))*(E34-(2*F34*G34))+SQRT((F34)^2+(2*F34*G34)^2)*((D34+(D34-(2*F34*G34)))+(E34+(E34-(2*F34*G34))))/2+8*(D34+4)+8*(E34+4)))) -> 0 | D201: =IF(C201="Double Liner",0,IF(D102=M$645,"Select Liner",C201/(IF(D102=M$643,'Unit Costs'!F$66,IF(D102=M$644,'Unit Costs'!F$67,IF(D102=M$646,'Unit Costs'!F$69,IF(D102=M$647,'Unit Costs'!F$70,"Liner Error"))))))) -> 0 | E201: =IF(C201="Double Liner",0,IF(D102=M$645,"Select Liner",(IF(D102=M$643,'Unit Costs'!H$66,IF(D102=M$644,'Unit Costs'!H$67,IF(D102=M$646,'Unit Costs'!H$69,IF(D102=M$647,'Unit Costs'!H$70,"Liner Error")))))*C201*1.15)) -> 0 | F201: =IF(C201="Double Liner",0,IF(D102=M$645,"Select Liner",(IF(D102=M$643,'Unit Costs'!I$66,IF(D102=M$644,'Unit Costs'!I$67,IF(D102=M$646,'Unit Costs'!I$69,IF(D102=M$647,'Unit Costs'!I$70,"Liner Error")))))*C201*1.15)) -> 0 | G201: =IF(C201="Double Liner",0,IF(D102=M$645,"Select Liner",(IF(D102=M$643,'Unit Costs'!G$66,IF(D102=M$644,'Unit Costs'!G$67,IF(D102=M$646,'Unit Costs'!G$69,IF(D102=M$647,'Unit Costs'!G$70,"Liner Error")))))*C201*1.15)) -> 0 | H201: =IF(D102=M$645,"Select Liner",SUM(E201:G201)) -> 0 | I201: =IF(C215=0,0,IF(C215="Double Liner",0,H201/C201)) -> 0
A202: 2 | C202: 0 | D202: =IF(C202="Double Liner",0,IF(D103=M$645,"Select Liner",C202/(IF(D103=M$643,'Unit Costs'!F$66,IF(D103=M$644,'Unit Costs'!F$67,IF(D103=M$646,'Unit Costs'!F$69,IF(D103=M$647,'Unit Costs'!F$70,"Liner Error"))))))) -> 0 | E202: =IF(C202="Double Liner",0,IF(D103=M$645,"Select Liner",(IF(D103=M$643,'Unit Costs'!H$66,IF(D103=M$644,'Unit Costs'!H$67,IF(D103=M$646,'Unit Costs'!H$69,IF(D103=M$647,'Unit Costs'!H$70,"Liner Error")))))*C202*1.15)) -> 0 | F202: =IF(C202="Double Liner",0,IF(D103=M$645,"Select Liner",(IF(D103=M$643,'Unit Costs'!I$66,IF(D103=M$644,'Unit Costs'!I$67,IF(D103=M$646,'Unit Costs'!I$69,IF(D103=M$647,'Unit Costs'!I$70,"Liner Error")))))*C202*1.15)) -> 0 | G202: =IF(C202="Double Liner",0,IF(D103=M$645,"Select Liner",(IF(D103=M$643,'Unit Costs'!G$66,IF(D103=M$644,'Unit Costs'!G$67,IF(D103=M$646,'Unit Costs'!G$69,IF(D103=M$647,'Unit Costs'!G$70,"Liner Error")))))*C202*1.15)) -> 0 | H202: 0 | I202: 0
A203: 3 | C203: 0 | D203: =IF(C203="Double Liner",0,IF(D104=M$645,"Select Liner",C203/(IF(D104=M$643,'Unit Costs'!F$66,IF(D104=M$644,'Unit Costs'!F$67,IF(D104=M$646,'Unit Costs'!F$69,IF(D104=M$647,'Unit Costs'!F$70,"Liner Error"))))))) -> 0 | E203: =IF(C203="Double Liner",0,IF(D104=M$645,"Select Liner",(IF(D104=M$643,'Unit Costs'!H$66,IF(D104=M$644,'Unit Costs'!H$67,IF(D104=M$646,'Unit Costs'!H$69,IF(D104=M$647,'Unit Costs'!H$70,"Liner Error")))))*C203*1.15)) -> 0 | F203: =IF(C203="Double Liner",0,IF(D104=M$645,"Select Liner",(IF(D104=M$643,'Unit Costs'!I$66,IF(D104=M$644,'Unit Costs'!I$67,IF(D104=M$646,'Unit Costs'!I$69,IF(D104=M$647,'Unit Costs'!I$70,"Liner Error")))))*C203*1.15)) -> 0 | G203: =IF(C203="Double Liner",0,IF(D104=M$645,"Select Liner",(IF(D104=M$643,'Unit Costs'!G$66,IF(D104=M$644,'Unit Costs'!G$67,IF(D104=M$646,'Unit Costs'!G$69,IF(D104=M$647,'Unit Costs'!G$70,"Liner Error")))))*C203*1.15)) -> 0 | H203: 0 | I203: 0
A204: 4 | C204: 0 | D204: =IF(C204="Double Liner",0,IF(D105=M$645,"Select Liner",C204/(IF(D105=M$643,'Unit Costs'!F$66,IF(D105=M$644,'Unit Costs'!F$67,IF(D105=M$646,'Unit Costs'!F$69,IF(D105=M$647,'Unit Costs'!F$70,"Liner Error"))))))) -> 0 | E204: =IF(C204="Double Liner",0,IF(D105=M$645,"Select Liner",(IF(D105=M$643,'Unit Costs'!H$66,IF(D105=M$644,'Unit Costs'!H$67,IF(D105=M$646,'Unit Costs'!H$69,IF(D105=M$647,'Unit Costs'!H$70,"Liner Error")))))*C204*1.15)) -> 0 | F204: =IF(C204="Double Liner",0,IF(D105=M$645,"Select Liner",(IF(D105=M$643,'Unit Costs'!I$66,IF(D105=M$644,'Unit Costs'!I$67,IF(D105=M$646,'Unit Costs'!I$69,IF(D105=M$647,'Unit Costs'!I$70,"Liner Error")))))*C204*1.15)) -> 0 | G204: =IF(C204="Double Liner",0,IF(D105=M$645,"Select Liner",(IF(D105=M$643,'Unit Costs'!G$66,IF(D105=M$644,'Unit Costs'!G$67,IF(D105=M$646,'Unit Costs'!G$69,IF(D105=M$647,'Unit Costs'!G$70,"Liner Error")))))*C204*1.15)) -> 0 | H204: 0 | I204: 0
A205: 5 | C205: 0 | D205: =IF(C205="Double Liner",0,IF(D106=M$645,"Select Liner",C205/(IF(D106=M$643,'Unit Costs'!F$66,IF(D106=M$644,'Unit Costs'!F$67,IF(D106=M$646,'Unit Costs'!F$69,IF(D106=M$647,'Unit Costs'!F$70,"Liner Error"))))))) -> 0 | E205: =IF(C205="Double Liner",0,IF(D106=M$645,"Select Liner",(IF(D106=M$643,'Unit Costs'!H$66,IF(D106=M$644,'Unit Costs'!H$67,IF(D106=M$646,'Unit Costs'!H$69,IF(D106=M$647,'Unit Costs'!H$70,"Liner Error")))))*C205*1.15)) -> 0 | F205: =IF(C205="Double Liner",0,IF(D106=M$645,"Select Liner",(IF(D106=M$643,'Unit Costs'!I$66,IF(D106=M$644,'Unit Costs'!I$67,IF(D106=M$646,'Unit Costs'!I$69,IF(D106=M$647,'Unit Costs'!I$70,"Liner Error")))))*C205*1.15)) -> 0 | G205: =IF(C205="Double Liner",0,IF(D106=M$645,"Select Liner",(IF(D106=M$643,'Unit Costs'!G$66,IF(D106=M$644,'Unit Costs'!G$67,IF(D106=M$646,'Unit Costs'!G$69,IF(D106=M$647,'Unit Costs'!G$70,"Liner Error")))))*C205*1.15)) -> 0 | H205: 0 | I205: 0
A206: 6 | C206: 0 | D206: =IF(C206="Double Liner",0,IF(D107=M$645,"Select Liner",C206/(IF(D107=M$643,'Unit Costs'!F$66,IF(D107=M$644,'Unit Costs'!F$67,IF(D107=M$646,'Unit Costs'!F$69,IF(D107=M$647,'Unit Costs'!F$70,"Liner Error"))))))) -> 0 | E206: =IF(C206="Double Liner",0,IF(D107=M$645,"Select Liner",(IF(D107=M$643,'Unit Costs'!H$66,IF(D107=M$644,'Unit Costs'!H$67,IF(D107=M$646,'Unit Costs'!H$69,IF(D107=M$647,'Unit Costs'!H$70,"Liner Error")))))*C206*1.15)) -> 0 | F206: =IF(C206="Double Liner",0,IF(D107=M$645,"Select Liner",(IF(D107=M$643,'Unit Costs'!I$66,IF(D107=M$644,'Unit Costs'!I$67,IF(D107=M$646,'Unit Costs'!I$69,IF(D107=M$647,'Unit Costs'!I$70,"Liner Error")))))*C206*1.15)) -> 0 | G206: =IF(C206="Double Liner",0,IF(D107=M$645,"Select Liner",(IF(D107=M$643,'Unit Costs'!G$66,IF(D107=M$644,'Unit Costs'!G$67,IF(D107=M$646,'Unit Costs'!G$69,IF(D107=M$647,'Unit Costs'!G$70,"Liner Error")))))*C206*1.15)) -> 0 | H206: 0 | I206: 0
C207: =SUM(C201:C206) -> 0 | D207: 0 | E207: 0 | F207: 0 | G207: 0 | H207: 0
B209: Liners and GeoNetting costs include additional 15% for Installation QA/QC
A211: Liner Key Trench | C211: Key Trench 2' wide by 3'deep centered 4' from top of liner slope
A213: Description (required) | C213: Trench Length | D213: Trench Volume | E213: Fleet Hours | F213: Total Labor Cost | G213: Total Equipment Cost | H213: Total Key Trench Installation Cost | I213: Unit Cost | J213: Unit Cost
C214: lf | D214: cy | E214: hrs | I214: $/lf | J214: $/cy
A215: =A34 -> 1 | C215: =IF(D34="",0,IF(F102="Double Liner",F102,((D34+E34+16)*2))) -> 0 | D215: =IF(F102="Double Liner",0,C215*3*2/27) -> 0 | E215: =D215/'Unit Costs'!F$73 -> 0 | F215: =D215*'Unit Costs'!H$73 -> 0 | G215: =D215*'Unit Costs'!I$73 -> 0 | H215: =SUM(F215:G215) -> 0 | I215: =IF(C215=0,0,IF(C215="Double Liner",0,H215/C215)) -> 0 | J215: =IF(D215=0,0,IF(D215="Double Liner",0,H215/D215)) -> 0
A216: 2 | C216: 0 | D216: 0 | E216: =D216/'Unit Costs'!F$73 -> 0 | F216: =D216*'Unit Costs'!H$73 -> 0 | G216: =D216*'Unit Costs'!I$73 -> 0 | H216: 0 | I216: 0 | J216: 0
A217: 3 | C217: 0 | D217: 0 | E217: =D217/'Unit Costs'!F$73 -> 0 | F217: =D217*'Unit Costs'!H$73 -> 0 | G217: =D217*'Unit Costs'!I$73 -> 0 | H217: 0 | I217: 0 | J217: 0
A218: 4 | C218: 0 | D218: 0 | E218: =D218/'Unit Costs'!F$73 -> 0 | F218: =D218*'Unit Costs'!H$73 -> 0 | G218: =D218*'Unit Costs'!I$73 -> 0 | H218: 0 | I218: 0 | J218: 0
A219: 5 | C219: 0 | D219: 0 | E219: =D219/'Unit Costs'!F$73 -> 0 | F219: =D219*'Unit Costs'!H$73 -> 0 | G219: =D219*'Unit Costs'!I$73 -> 0 | H219: 0 | I219: 0 | J219: 0
A220: 6 | C220: 0 | D220: 0 | E220: =D220/'Unit Costs'!F$73 -> 0 | F220: =D220*'Unit Costs'!H$73 -> 0 | G220: =D220*'Unit Costs'!I$73 -> 0 | H220: 0 | I220: 0 | J220: 0
C221: =SUM(C215:C220) -> 0 | D221: =SUM(D215:D220) -> 0 | E221: 0 | F221: 0 | G221: 0 | H221: 0
A225: Dosing Tank Installation
A227: Description (required) | C227: Number of Tanks | D227: Concrete Volume | E227: Productivity | F227: Total Labor Cost | G227: Total Equipment Cost | H227: Total Material Cost | I227: Total Dosing Tank Installation Cost
D228: cy | E228: LCY/hr
A229: =A$34 -> 1 | B229: =B34 ->  | C229: 1 | D229: =IF(B34="",0,C229*19) -> 0 | E229: =IF(D34="",0,'Unit Costs'!F$75) -> 0 | F229: ='Unit Costs'!H$75*D229 -> 0 | G229: ='Unit Costs'!I$75*D229 -> 0 | H229: ='Unit Costs'!G$75*D229 -> 0 | I229: =SUM(F229:H229) -> 0
A230: =A$35 -> 2 | C230: 1 | D230: 0 | E230: =IF(D35="",0,'Unit Costs'!F$75) -> 0 | F230: ='Unit Costs'!H$75*D230 -> 0 | G230: ='Unit Costs'!I$75*D230 -> 0 | H230: ='Unit Costs'!G$75*D230 -> 0 | I230: 0
A231: =A$36 -> 3 | C231: 1 | D231: 0 | E231: =IF(D36="",0,'Unit Costs'!F$75) -> 0 | F231: ='Unit Costs'!H$75*D231 -> 0 | G231: ='Unit Costs'!I$75*D231 -> 0 | H231: ='Unit Costs'!G$75*D231 -> 0 | I231: 0
A232: =A37 -> 4 | C232: 1 | D232: 0 | E232: =IF(D37="",0,'Unit Costs'!F$75) -> 0 | F232: ='Unit Costs'!H$75*D232 -> 0 | G232: ='Unit Costs'!I$75*D232 -> 0 | H232: ='Unit Costs'!G$75*D232 -> 0 | I232: 0
A233: =A38 -> 5 | C233: 1 | D233: 0 | E233: =IF(D38="",0,'Unit Costs'!F$75) -> 0 | F233: ='Unit Costs'!H$75*D233 -> 0 | G233: ='Unit Costs'!I$75*D233 -> 0 | H233: ='Unit Costs'!G$75*D233 -> 0 | I233: 0
A234: =A39 -> 6 | C234: 1 | D234: 0 | E234: =IF(D39="",0,'Unit Costs'!F$75) -> 0 | F234: ='Unit Costs'!H$75*D234 -> 0 | G234: ='Unit Costs'!I$75*D234 -> 0 | H234: ='Unit Costs'!G$75*D234 -> 0 | I234: 0
C235: =SUM(C229:C234) -> 6 | D235: =SUM(D229:D234) -> 0 | F235: =SUM(F229:F234) -> 0 | G235: =SUM(G229:G234) -> 0 | H235: =SUM(H229:H234) -> 0 | I235: =SUM(I229:I234) -> 0
B237: Based on Mineral Ridge dosing tank at $5,457, 19 cy of RCC in SRCE approximates this value
A239: Under Drain Pipe Manifold Installation 4"Dia @ 10' oc
A241: Description (required) | C241: Total Pipe Length | D241: Productivity | E241: Crew Hours | F241: Labor Cost | G241: Equipment Cost | H241: Material Cost | I241: Total Piping Cost | J241: Unit Cost
C242: ft | D242: lf/hr | E242: hrs | J242: $/lf
A243: =A$34 -> 1 | B243: =B34 ->  | C243: =IF(B34="",0,((D34-(2*F34*G34))*((E34-(2*F34*G34))/10))+(D34-(2*F34*G34))) -> 0 | D243: =IF(D34="",0,'Unit Costs'!F$79) -> 0 | E243: =IF(D34="",0,C243/D243) -> 0 | F243: ='Unit Costs'!H$79*C243 -> 0 | G243: ='Unit Costs'!I$79*C243 -> 0 | H243: ='Unit Costs'!G$79*C243 -> 0 | I243: =SUM(F243:H243) -> 0 | J243: =IF(C243=0,0,I243/C243) -> 0
A244: =A$35 -> 2 | C244: 0 | D244: =IF(D35="",0,'Unit Costs'!F$79) -> 0 | E244: 0 | F244: ='Unit Costs'!H$79*C244 -> 0 | G244: ='Unit Costs'!I$79*C244 -> 0 | H244: ='Unit Costs'!G$79*C244 -> 0 | I244: 0 | J244: 0
A245: =A$36 -> 3 | C245: 0 | D245: =IF(D36="",0,'Unit Costs'!F$79) -> 0 | E245: 0 | F245: ='Unit Costs'!H$79*C245 -> 0 | G245: ='Unit Costs'!I$79*C245 -> 0 | H245: ='Unit Costs'!G$79*C245 -> 0 | I245: 0 | J245: 0
A246: =A37 -> 4 | C246: 0 | D246: =IF(D37="",0,'Unit Costs'!F$79) -> 0 | E246: 0 | F246: ='Unit Costs'!H$79*C246 -> 0 | G246: ='Unit Costs'!I$79*C246 -> 0 | H246: ='Unit Costs'!G$79*C246 -> 0 | I246: 0 | J246: 0
A247: =A38 -> 5 | C247: 0 | D247: =IF(D38="",0,'Unit Costs'!F$79) -> 0 | E247: 0 | F247: ='Unit Costs'!H$79*C247 -> 0 | G247: ='Unit Costs'!I$79*C247 -> 0 | H247: ='Unit Costs'!G$79*C247 -> 0 | I247: 0 | J247: 0
A248: =A39 -> 6 | C248: 0 | D248: =IF(D39="",0,'Unit Costs'!F$79) -> 0 | E248: 0 | F248: ='Unit Costs'!H$79*C248 -> 0 | G248: ='Unit Costs'!I$79*C248 -> 0 | H248: ='Unit Costs'!G$79*C248 -> 0 | I248: 0 | J248: 0
C249: =SUM(C243:C248) -> 0 | E249: =SUM(E243:E248) -> 0 | F249: =SUM(F243:F248) -> 0 | G249: =SUM(G243:G248) -> 0 | H249: =SUM(H243:H248) -> 0 | I249: =SUM(I243:I248) -> 0
A253: Material Screening for Backfill
A254: Backfill Material Screening
A255: Description (required) | C255: Volume to Screen | D255: Screening Fleet | E255: Screening Productivity | F255: Total Fleet Hours | G255: Total Labor Cost | H255: Total Equipment Cost | I255: Total Screening Cost | J255: Screening Unit Cost
C256: cy | E256: LCY/hr | F256: hrs | J256: $/cy
A257: =A34 -> 1 | B257: =B34 ->  | C257: =IF(B34="","",IF(J58="","",IF(J58="No","",C271/(1-L58)))) ->  | D257: =IF(B34="","",K58) ->  | E257: =IF(C257="","",IF(D257=C$588,60*C$592/C$594,IF(D257=D$588,60*D$592/D$594,IF(D257=E$588,60*E$592/E$594,"select fleet")))) ->  | F257: =IF(C257="","",IF(L58>0.5,(IF(D257=C$588,C257/60*(2+(2/3))*C$594/C$592,IF(D257=D$588,C257/60*(2+(2/3))*D$594/D$592,IF(D257=E$588,C257/60*(2+(2/3))*E$594/E$592,"select fleet")))),IF(D257=C$588,C257/60*(2)*C$594/C$592,IF(D257=D$588,C257/60*(2)*D$594/D$592,IF(D257=E$588,C257/60*(2)*E$594/E$592,"select fleet"))))) ->  | G257: =IF(C257="","",F257*IF(K58=J$661,'Unit Costs'!B$40,IF(K58=J$662,'Unit Costs'!B$39,IF(K58=J$663,'Unit Costs'!B$38,"SelectFleet")))) ->  | H257: =IF(C257="","",F257*IF(K58=J$661,'Unit Costs'!C$40,IF(K58=J$662,'Unit Costs'!C$39,IF(K58=J$663,'Unit Costs'!C$38,"Select Fleet")))) ->  | I257: =SUM(G257:H257) -> 0 | J257: =IF(C257="","",IF(C257=0,0,I257/C257)) -> 
A258: =A35 -> 2 | C258: =IF(B35="","",IF(J59="","",IF(J59="No","",C272/(1-L59)))) ->  | D258: =IF(B35="","",K59) ->  | G258: =IF(C258="","",F258*IF(K59=J$661,'Unit Costs'!B$40,IF(K59=J$662,'Unit Costs'!B$39,IF(K59=J$663,'Unit Costs'!B$38,"SelectFleet")))) ->  | H258: =IF(C258="","",F258*IF(K59=J$661,'Unit Costs'!C$40,IF(K59=J$662,'Unit Costs'!C$39,IF(K59=J$663,'Unit Costs'!C$38,"Select Fleet")))) ->  | I258: =SUM(G258:H258) -> 0 | J258: =IF(C258="","",IF(C258=0,0,I258/C258)) -> 
A259: =A36 -> 3 | G259: =IF(C259="","",F259*IF(K60=J$661,'Unit Costs'!B$40,IF(K60=J$662,'Unit Costs'!B$39,IF(K60=J$663,'Unit Costs'!B$38,"SelectFleet")))) ->  | H259: =IF(C259="","",F259*IF(K60=J$661,'Unit Costs'!C$40,IF(K60=J$662,'Unit Costs'!C$39,IF(K60=J$663,'Unit Costs'!C$38,"Select Fleet")))) ->  | I259: 0
A260: =A37 -> 4 | G260: =IF(C260="","",F260*IF(K61=J$661,'Unit Costs'!B$40,IF(K61=J$662,'Unit Costs'!B$39,IF(K61=J$663,'Unit Costs'!B$38,"SelectFleet")))) ->  | H260: =IF(C260="","",F260*IF(K61=J$661,'Unit Costs'!C$40,IF(K61=J$662,'Unit Costs'!C$39,IF(K61=J$663,'Unit Costs'!C$38,"Select Fleet")))) ->  | I260: 0
A261: =A38 -> 5 | G261: =IF(C261="","",F261*IF(K62=J$661,'Unit Costs'!B$40,IF(K62=J$662,'Unit Costs'!B$39,IF(K62=J$663,'Unit Costs'!B$38,"SelectFleet")))) ->  | H261: =IF(C261="","",F261*IF(K62=J$661,'Unit Costs'!C$40,IF(K62=J$662,'Unit Costs'!C$39,IF(K62=J$663,'Unit Costs'!C$38,"Select Fleet")))) ->  | I261: 0
A262: =A39 -> 6 | G262: =IF(C262="","",F262*IF(K63=J$661,'Unit Costs'!B$40,IF(K63=J$662,'Unit Costs'!B$39,IF(K63=J$663,'Unit Costs'!B$38,"SelectFleet")))) ->  | H262: =IF(C262="","",F262*IF(K63=J$661,'Unit Costs'!C$40,IF(K63=J$662,'Unit Costs'!C$39,IF(K63=J$663,'Unit Costs'!C$38,"Select Fleet")))) ->  | I262: 0
C263: =SUM(C257:C262) -> 0 | F263: =SUM(F257:F262) -> 0 | G263: =SUM(G257:G262) -> 0 | H263: =SUM(H257:H262) -> 0 | I263: =SUM(I257:I262) -> 0
A267: Pond Backfill
C268: Pond Backfill Haul and Place
A269: Description (required) | C269: Backfill Volume | D269: Backfill Fleet | E269: Number of Trucks | F269: Fleet Productivity | G269: Total Fleet Hours | H269: Total Labor Cost | I269: Total Equipment Cost | J269: Total Backfill Cost | K269: Screen and BF Total Cost | L269: Total Unit Cost
C270: cy | F270: LCY/hr | G270: hrs | L270: $/cy
A271: =A$34 -> 1 | B271: =B34 ->  | C271: =IF(B34="","",(E34*E34/2/G34*(D34-E34)/2+(E34*E34*(E34/2/G34))/3-((E34/2/G34)-F34)*(E34-(2*F34*G34))*(D34-E34)/2-(((E34-(2*F34*G34))*(E34-(2*F34*G34)))*((E34/2/G34)-F34))/3)/27-(E34*E34/2/G34*(D34-E34)/2+(E34*E34*(E34/2/G34))/3-((E34/2/G34)-H34)*(E34-(2*H34*G34))*(D34-E34)/2-(((E34-(2*H34*G34))*(E34-(2*H34*G34)))*((E34/2/G34)-H34))/3)/27) ->  | D271: =IF(D34="","",G58) ->  | E271: =IF(B34="","",IF(H58=0,ROUNDUP((N542-L542)/L542,0),H58)) ->  | F271: =IF(B34="","",ROUND(0.83*E271*((IF(D271="769D 988G D7R",26.65,IF(D271="777D 992G D7R",66.8,"Select Fleet"))*60)/N542),0)) ->  | G271: =IF(B34="","",ROUND(IF(B34="","",C271/F271),0)) ->  | H271: =IF(B34="","",G271*IF(G58=B$660,'Unit Costs'!B$30+'Unit Costs'!B$35+'Unit Costs'!B$39,IF(G58=B$661,'Unit Costs'!B$29+'Unit Costs'!B$35+'Unit Costs'!B$38,0))) ->  | I271: =IF(B34="","",G271*IF(G58=B$660,'Unit Costs'!C$30+'Unit Costs'!C$35+'Unit Costs'!C$39,IF(G58=B$661,'Unit Costs'!C$29+'Unit Costs'!C$35+'Unit Costs'!C$38,0))) ->  | J271: =SUM(H271:I271) -> 0 | K271: =I257+J271 -> 0 | L271: =IF(C271="",0,(J271+I257)/C271) -> 0
A272: =A$35 -> 2 | C272: =IF(D35="","",(E35*E35/2/G35*(D35-E35)/2+(E35*E35*(E35/2/G35))/3-((E35/2/G35)-F35)*(E35-(2*F35*G35))*(D35-E35)/2-(((E35-(2*F35*G35))*(E35-(2*F35*G35)))*((E35/2/G35)-F35))/3)/27-(E35*E35/2/G35*(D35-E35)/2+(E35*E35*(E35/2/G35))/3-((E35/2/G35)-H35)*(E35-(2*H35*G35))*(D35-E35)/2-(((E35-(2*H35*G35))*(E35-(2*H35*G35)))*((E35/2/G35)-H35))/3)/27) ->  | G272: =IF(B35="","",ROUND(IF(B35="","",C272/F272),0)) ->  | H272: =IF(D35="","",G272*IF(G59=B$660,'Unit Costs'!B$30+'Unit Costs'!B$35+'Unit Costs'!B$39,IF(G59=B$661,'Unit Costs'!B$29+'Unit Costs'!B$35+'Unit Costs'!B$38,0))) ->  | I272: =IF(D35="","",G272*IF(G59=B$660,'Unit Costs'!C$30+'Unit Costs'!C$35+'Unit Costs'!C$39,IF(G59=B$661,'Unit Costs'!C$29+'Unit Costs'!C$35+'Unit Costs'!C$38,0))) ->  | J272: 0 | K272: 0 | L272: 0
A273: =A$36 -> 3 | C273: =IF(D36="","",(E36*E36/2/G36*(D36-E36)/2+(E36*E36*(E36/2/G36))/3-((E36/2/G36)-F36)*(E36-(2*F36*G36))*(D36-E36)/2-(((E36-(2*F36*G36))*(E36-(2*F36*G36)))*((E36/2/G36)-F36))/3)/27-(E36*E36/2/G36*(D36-E36)/2+(E36*E36*(E36/2/G36))/3-((E36/2/G36)-H36)*(E36-(2*H36*G36))*(D36-E36)/2-(((E36-(2*H36*G36))*(E36-(2*H36*G36)))*((E36/2/G36)-H36))/3)/27) ->  | H273: =IF(D36="","",G273*IF(G60=B$660,'Unit Costs'!B$30+'Unit Costs'!B$35+'Unit Costs'!B$39,IF(G60=B$661,'Unit Costs'!B$29+'Unit Costs'!B$35+'Unit Costs'!B$38,0))) ->  | I273: =IF(D36="","",G273*IF(G60=B$660,'Unit Costs'!C$30+'Unit Costs'!C$35+'Unit Costs'!C$39,IF(G60=B$661,'Unit Costs'!C$29+'Unit Costs'!C$35+'Unit Costs'!C$38,0))) ->  | J273: 0 | K273: 0 | L273: 0
A274: =A37 -> 4 | C274: =IF(D37="","",(E37*E37/2/G37*(D37-E37)/2+(E37*E37*(E37/2/G37))/3-((E37/2/G37)-F37)*(E37-(2*F37*G37))*(D37-E37)/2-(((E37-(2*F37*G37))*(E37-(2*F37*G37)))*((E37/2/G37)-F37))/3)/27-(E37*E37/2/G37*(D37-E37)/2+(E37*E37*(E37/2/G37))/3-((E37/2/G37)-H37)*(E37-(2*H37*G37))*(D37-E37)/2-(((E37-(2*H37*G37))*(E37-(2*H37*G37)))*((E37/2/G37)-H37))/3)/27) ->  | H274: =IF(D37="","",G274*IF(G61=B$660,'Unit Costs'!B$30+'Unit Costs'!B$35+'Unit Costs'!B$39,IF(G61=B$661,'Unit Costs'!B$29+'Unit Costs'!B$35+'Unit Costs'!B$38,0))) ->  | I274: =IF(D37="","",G274*IF(G61=B$660,'Unit Costs'!C$30+'Unit Costs'!C$35+'Unit Costs'!C$39,IF(G61=B$661,'Unit Costs'!C$29+'Unit Costs'!C$35+'Unit Costs'!C$38,0))) ->  | J274: 0 | K274: 0 | L274: 0
A275: =A38 -> 5 | C275: =IF(D38="","",(E38*E38/2/G38*(D38-E38)/2+(E38*E38*(E38/2/G38))/3-((E38/2/G38)-F38)*(E38-(2*F38*G38))*(D38-E38)/2-(((E38-(2*F38*G38))*(E38-(2*F38*G38)))*((E38/2/G38)-F38))/3)/27-(E38*E38/2/G38*(D38-E38)/2+(E38*E38*(E38/2/G38))/3-((E38/2/G38)-H38)*(E38-(2*H38*G38))*(D38-E38)/2-(((E38-(2*H38*G38))*(E38-(2*H38*G38)))*((E38/2/G38)-H38))/3)/27) ->  | H275: =IF(D38="","",G275*IF(G62=B$660,'Unit Costs'!B$30+'Unit Costs'!B$35+'Unit Costs'!B$39,IF(G62=B$661,'Unit Costs'!B$29+'Unit Costs'!B$35+'Unit Costs'!B$38,0))) ->  | I275: =IF(D38="","",G275*IF(G62=B$660,'Unit Costs'!C$30+'Unit Costs'!C$35+'Unit Costs'!C$39,IF(G62=B$661,'Unit Costs'!C$29+'Unit Costs'!C$35+'Unit Costs'!C$38,0))) ->  | J275: 0 | K275: 0 | L275: 0
... 375 more rows

Sheet Unit Costs
A1: 2023 BLM AND NDEP ACCEPTED VERSION
A3: Unit Costs
A5: Project Name: | C5: ='E Cell Calculator'!J3 -> 
A6: Date of Submittal: | C6: ='E Cell Calculator'!J7 -> 
A7: File Name: | C7: ='E Cell Calculator'!J8 -> EZ_ECellCalculator_07_31_2023.xlsm
A8: Model Version: | C8: ='E Cell Calculator'!J9 -> 1.0.0 NDEP version 08.01.2023
A9: Cost Data File: | C9: ='E Cell Calculator'!J10 -> SRCE_Cost_Data_File_1_12_Std_2023.xlsm
A10: Cost Data Date: | C10: ='E Cell Calculator'!J11 -> 2023-08-01
A14: Labor:
A15: Poly Liner Instalation/Inspection/Repair
A16: Crew: 3 SKWK | B16: Rates: ($/hr)
B17: Equip | C17: Labor | D17: Total
A18: Skilled Laborer | B18: 0 | C18: 56.575155 | D18: =SUM(B18:C18) -> 56.575155
A19: Skilled Laborer | B19: 0 | C19: 56.575155 | D19: =SUM(B19:C19) -> 56.575155
A20: Skilled Laborer | B20: 0 | C20: 56.575155 | D20: 56.575155
A21: HDEP Welder (pipe or liner) | B21: 50.72 | C21: 0 | D21: 50.72
A22: 420D 4WD Backhoe | B22: 37.35011561 | C22: 78.425555 | D22: 115.7756706
A23: Totals | B23: =SUM(B18:B22) -> 88.07011561 | C23: =SUM(C18:C22) -> 248.15102 | D23: 336.2211356
A25: Equipment:
B26: Labor ($/hr) | C26: Equipment ($/hr) | D26: Total ($/hr) | F26: Hourly Equipment Rate
F27: Total | G27: Equip | H27: PM | I27: GET | J27: Tires | K27: Fuel | L27: Cons g/hr
A28: Trucks
A29: 777D | B29: 43.26725 | C29: =F29 -> 465.5459206 | D29: =B29+C29 -> 508.8131706 | F29: =SUM(G29:K29) -> 465.5459206 | G29: 357.9545455 | H29: 12.91 | I29: 5.2 | J29: 19.68787515 | K29: =B110*L29 -> 69.7935 | L29: 17.85
A30: 769D | B30: 43.26725 | C30: =F30 -> 237.9840909 | D30: =B30+C30 -> 281.2513409 | F30: =SUM(G30:K30) -> 237.9840909 | G30: 184.6590909 | H30: 7.29 | I30: 4.15 | J30: 6.695 | K30: =B$110*L30 -> 35.19 | L30: 9
A32: Dozers
A33: D10R | B33: 71.368665 | C33: =F33 -> 363.7079091 | D33: =B33+C33 -> 435.0765741 | F33: =SUM(G33:K33) -> 363.7079091 | G33: 252.8409091 | H33: 12.46 | I33: 25.29 | J33: 0 | K33: =B$110*L33 -> 73.117 | L33: 18.7
A34: D9R | B34: 71.368665 | C34: 257.5813636 | D34: 328.9500286 | F34: 257.5813636 | G34: 176.1363636 | H34: 10.59 | I34: 18.07 | J34: 0 | K34: =B$110*L34 -> 52.785 | L34: 13.5
A35: D7R | B35: 71.368665 | C35: 113.6859545 | D35: 185.0546195 | F35: 113.6859545 | G35: 73.29545455 | H35: 8.8 | I35: 5.98 | J35: 0 | K35: =B$110*L35 -> 25.6105 | L35: 6.55
A37: Loaders
A38: 992G | B38: 72.436355 | C38: 572.8474747 | D38: =B38+C38 -> 645.2838297 | F38: 572.8474747 | G38: 394.8863636 | H38: 14.52 | I38: 38.8 | J38: 34.71111111 | K38: =B$110*L38 -> 89.93 | L38: 23
A39: 988G | B39: 72.436355 | C39: 243.0743182 | D39: 315.5106732 | F39: 243.0743182 | G39: 147.5568182 | H39: 13.12 | I39: 16.9 | J39: 17.6 | K39: =B$110*L39 -> 47.8975 | L39: 12.25
A40: 966G | B40: 72.436355 | C40: 117.1471717 | D40: 189.5835267 | F40: 117.1471717 | G40: 71.02272727 | H40: 6.19 | I40: 12.45 | J40: 11.84444444 | K40: =B$110*L40 -> 15.64 | L40: 4
A42: Excavators
A43: 385BL | B43: 72.436355 | C43: 217.4594545 | D43: =B43+C43 -> 289.8958095 | F43: 217.4594545 | G43: 142.0454545 | H43: 7.41 | I43: 15.61 | J43: 0 | K43: =B$110*L43 -> 52.394 | L43: 13.4
A44: 345B | B44: 72.436355 | C44: 149.5155 | D44: 221.951855 | F44: 149.5155 | G44: 93.75 | H44: 8.84 | I44: 7.63 | J44: 0 | K44: =B$110*L44 -> 39.2955 | L44: 10.05
A45: 325C | B45: 72.436355 | C45: 93.90827273 | D45: 166.3446277 | F45: 93.90827273 | G45: 53.97727273 | H45: 5.4 | I45: 6.77 | J45: 0 | K45: =B$110*L45 -> 27.761 | L45: 7.1
A47: Scrapers
A48: 637G | B48: 72.436355 | C48: 340.9822545 | D48: =B48+C48 -> 413.4186095 | F48: 340.9822545 | G48: 196.9824545 | H48: 20.1425 | I48: 16.1553 | J48: 20.9 | K48: =B$110*L48 -> 86.802 | L48: 22.2
A49: 631G | B49: 71.368665 | C49: 239.3279545 | D49: 310.6966195 | F49: 239.3279545 | G49: 142.0454545 | H49: 8.93 | I49: 9.78 | J49: 20.9 | K49: =B$110*L49 -> 57.6725 | L49: 14.75
A51: Grader
A52: 16GH | B52: 72.436355 | C52: 177.2293699 | D52: =B52+C52 -> 249.6657249 | F52: 177.2293699 | G52: 93.75 | H52: 6.97 | I52: 24.55 | J52: 17.55136986 | K52: =B$110*L52 -> 34.408 | L52: 8.8
A54: Misc.
A55: Vacuume Truck | D55: 207
A59: Materials:
A62: 80mil HDPE Liner | C62: Means No. | D62: Unit | E62: Crew | F62: Output/Day | G62: Material | H62: Labor | I62: Equip | K62: Total
A63: Finish grading large area | C63: 2310-100-0100 | D63: S.F. | E63: B-11L | F63: 2000 | H63: 0.41 | I63: 0.47 | K63: =H63+I63 -> 0.88
A64: Compaction - riding, vibrating roller - 12" lifts | C64: 2315-310-5080 | D64: S.F. | E64: B-10Y | F64: 3500 | H64: 0.23 | I64: 0.12 | K64: =H64+I64 -> 0.35
A66: 80 mil HDPE | C66: 6/22 AGRU Quote | D66: S.F. | E66: 3 Skwk | F66: 19000 | G66: 0.625 | H66: =$C$23/(F66/8) -> 0.10448464 | I66: =$B$23/(F66/8) -> 0.03708215394 | K66: =G66+H66+I66 -> 0.7665667939
A67: 60 mil HDPE | C67: 6/22 AGRU Quote | D67: S.F. | E67: 3 Skwk | F67: 16000 | G67: 0.474 | H67: =$C$23/(F67/8) -> 0.12407551 | I67: =$B$23/(F67/8) -> 0.0440350578 | K67: =G67+H67+I67 -> 0.6421105678
A68: 60 mil HDPE Drain Liner | C68: 6/22 AGRU Quote | D68: S.F. | E68: 3 Skwk | F68: 12000 | G68: 0.673 | H68: 0.1654340133 | I68: 0.0587134104 | K68: =G68+H68+I68 -> 0.8971474237
A69: 40 mil HDPE | C69: 6/22 AGRU Quote | D69: S.F. | E69: 3 Skwk | F69: 19000 | G69: 0.343 | H69: 0.10448464 | I69: 0.03708215394 | K69: =G69+H69+I69 -> 0.4845667939
A70: 40 mil LLDPE | C70: 6/22 AGRU Quote | D70: S.F. | E70: 3 Skwk | F70: 20000 | G70: 0.353 | H70: 0.099260408 | I70: 0.03522804624 | K70: =G70+H70+I70 -> 0.4874884542
B71: TOTAL | G71: =G67 -> 0.474 | H71: =H63+H64+H67 -> 0.76407551 | I71: =I63+I64+I67 -> 0.6340350578 | K71: =G71+H71+I71 -> 1.872110568
A72: 420D Backhoe | F72: Output/Day
A73: Backhoe work | C73: 02210-700-0120 | D73: C.Y. | E73: B-11M | F73: 28 | H73: =8*C22/F73 -> 22.40730143 | I73: =8*B22/F73 -> 10.6714616 | K73: =H73+I73 -> 33.07876303
A74: Dosing Tank
A75: Grade walls - 15 in (40 cm) thick, 8 ft ( 2.5 m) high | C75: 03310-240-4300 | D75: C.Y. | E75: C-14D | F75: 80.02 | G75: 202 | H75: =8*1228.66/F75 -> 122.8352912 | I75: =8*149.91/F75 -> 14.98725319 | K75: =H75+I75+G75 -> 339.8225444
A76: Piping
A77: Water 4in (10cm ) 40ft (12m) length, welded HDPE | C77: 02510-760-0100 | D77: L.F. | E77: B-22A | F77: 400 | G77: 1.11 | H77: =8*245.65/F77 -> 4.913 | I77: =8*258.63/F77 -> 5.1726 | K77: =H77+I77+G77 -> 11.1956
A78: Water 6in (15cm) 40ft (12m) length, welded HDPE | C78: 02510-760-0200 | D78: L.F. | E78: B-22A | F78: 380 | G78: 2.39 | H78: =8*245.65/F78 -> 5.171578947 | I78: =8*258.63/F78 -> 5.444842105 | K78: =H78+I78+G78 -> 13.00642105
A79: Drain 4in (10cm) corrugated, perf or plain | C79: 02220-220-2960 | D79: L.F. | E79: 2 Clab | F79: 1200 | G79: 1.76 | H79: =8*80.58/F79 -> 0.5372 | I79: =8*31.14/F79 -> 0.2076 | K79: =H79+I79+G79 -> 2.5048
A80: Fence | I80: .
A81: Chain link 8-10ft (2.5-3m) Install | C81: 02820-130-0920 | D81: L.F. | E81: B-80C | F81: 180 | G81: 43 | H81: =8*120.87/F81 -> 5.372 | I81: =8*31.14/F81 -> 1.384 | K81: =H81+I81+G81 -> 49.756
A82: Seed
A83: Seeding - Broadcast Mechanical (1) | D83: acres | H83: 175 | I83: 100 | K83: =H83+I83+G83 -> 275
A86: Seed Mix | B86: Description | D86: Cost/Acre
A88: None
A89: Mix 1 | B89: Basins | D89: 302.5
A90: Mix 2 | B90: Low Hills | D90: 332.75
A91: Mix 3 | B91: Uplands | D91: 363
A92: Mix 4 | B92: Riparian or Custom | D92: 393.25
A93: User Mix 1 | B93: Vender Quote Attached | D93: 217
A94: User Mix 2
A95: User Mix 3
A96: User Mix 4
A98: Ammenities
A99: Item | B99: Cost/lb | C99: lbs/Acre | D99: Cost/Acre
A100: Straw Mulch | B100: 0.2376545926 | C100: 1000 | D100: =B100*C100 -> 237.6545926
A101: Hydro Mulch | B101: 0.39 | C101: 1000 | D101: =B101*C101 -> 390
A102: Organic Matter | B102: 0.8 | C102: 1000 | D102: 800
A103: Chemical | B103: 0.7314 | C103: 1000 | D103: 731.4
A106: Unemployment (%) | B106: 0.03
A107: Retirement/SS/Medicare (%) | B107: 0.0765
A108: Workman's Compensation (%) | B108: 0.135
A110: Fuel Price/ gal | B110: 3.91

Sheet Guide Notes
A1: Guide Notes and Assumptions:
A4: Guide Notes:
A5: 1 | B5: Sludge Removal and Disposal | C5: Assumes 0.5 feet of accumulated sludge to be removed. Disposal on site in 2x liner at HLP or TSF.
A6: 2 | B6: Existing Liner Inspect and Repair | C6: Cost based on assumption that it is 1/2 liner installation cost.
A7: 3 | B7: New Pond Excavation | C7: Earthwork for Ring dike for Slope 0-10%, Earthwork for valley fill for slope over 10%
A8: 4 | B8: Secondary Liner Instalation | C8: Source (SRCE)
A9: 5 | B9: Geonetting | C9: Cost based on assumption that labor and equipment are same as liner. Materials are 1/2- 60mil liner cost.
A10: 6 | B10: Primary Liner Instalation | C10: Calculates cost for primary liner regardless of age or condition of existing primary liner.
A11: 7 | B11: Liner Key Trenching | C11: 2'x2' trench
A12: 8 | B12: Dosing Tank | C12: Cost based on Jan 2011 Quote from Jensen Precast, FOB Elko
A13: 9 | B13: Piping Manifold | C13: 4 in diam perf ploy pipe at 10 feet on center.
A14: 10 | B14: Backfill and Coarse Rock Cover | C14: Screened HLP, WRD or alluvial material, source is on site.
A15: 11 | B15: HLP to Pond to Pond Piping | C15: 4 in diam in 6 in diam welded pipe
A16: 12 | B16: Fencing | C16: Ten foot tall chain link set back from crest of pond 20 feet. Assume any existing fence requires replacement. Cost includes gates.
A17: 13 | B17: Growth Media | C17: Use for any disturbed areas requiring revegetation that are not already included in a SRCE.
A18: 14 | B18: Revegetation | C18: Use for any disturbed areas requiring revegetation that are not already included in a SRCE.
A19: 15 | B19: Leach Field | C19: Failsafe overflow device, 100 lf 4 in dia perf poly pipe, 3 ft deep in 2 ft wide trench, backfilled with clean gravel.
A20: 16 | B20: Peizo Well | C20: Minimum 12 inch dia. perforated poly pipe from bottom liner to 3ft above backfill. Includes locking lid assembly.
A21: 17 | B21: Miscelaneous | C21: Miscelaneous
A23: Assumptions:
B24: •New Construction:
B25: •Quantify Earthwork to construct new pond – Layout
B26: •Converting existing pond(s) to E-cells
B27: •Unlined, Single, Double Liners
B28: •Sludge removal and disposal:
B29: •Assume minimum 0.5’ depth of sludge in existing ponds will need to be removed and disposed of on double lined containment
B30: •Inspect and repair existing liner systems
B31: •Primary liner installation
B32: •Secondary liner installation with geo-net and leak detection port
B33: •Liner key in trenching around perimeter
B34: •Dosing tank, assume 1 dosing tank required in each E-cell
B35: •Drain/Distribution Manifold Piping
B36: •Backfill and Coarse Rock Cover:
B37: •2’ Freeboard Above Backfill
B38: •All backfill will originate on-site from a leach pad or waste rock dump
B39: •Entire backfill volume will need to be sized (screen or grizzly) at borrow site
B40: •Piping:
B41: •Heap to E-cell will be pipe-in-pipe HDPE, and buried to protect from UV.
B42: •Pond to Pond will be pipe-in-pipe HDPE, and buried to protect from UV.
B43: •Wildlife Fencing Around Perimeter:
B44: •Any existing fencing will need full replacement
B45: •Growth media:
B46: •No Growth Media included in E-Cell Estimate
B47: •Coverage sloped to drain if constructing an ET cell, Possible future addition
B48: •Haul distances and slopes from site mapping for haulage activities.
B49: •SRCE cost data for labor, equipment, materials
B50: •Caterpillar Equipment manual - equipment productivities
B51: •Construction Management
B52: •Long Term Water Chemistry Sampling , Monitoring and Reporting

Sheet Revision Notes (hidden)
A1: Revisions/Additions Punch List: | B1: Resolution:
A2: Red items need attention
A4: Include Multiple Handeling for Backfill | B4: Three times needed volume for backfill cost as loader manover to load and manover to dump.
A5: Include Freeboad and Cover | B5: Minimum 2 feet freeboard included as input item.
A6: Leak Detection | B6: Included as cost for geonetting
A7: Ballanced EW for New Ponds | B7: Calculates same volume as SRCE for slopes > 10%
A8: Capillary vs Vados - Consider Both | B8: Screen material not specific to size. Not able to include specificlly.
A9: Look into Copper Basin Design | B9: Done
A10: Golden Butte 2 cells | B10: Done
A11: No Surface Exposure of Water | B11: Screen material not specific to size. Not able to include specificlly.
A12: Hard Wire 5000 Pumper Truck for Slugde Disposal | B12: Included with cost from SRCE for 5000 gal vac per hour using hrs as travel time to disposal location on site
A13: Hard Wire 0.5 feet of sludge in existing Ponds | B13: Done
A14: Consider Existing Double Liner, 4 possible scenerios | B14: Done
A15: Clark West, liner repair estimates Sierra Geosynthetics Fernley | B15: No usable information was derived for conversation with Sales Rep.
A16: Dosing tank using Concrete Construction Mineral Ridge 2000,2500,900 | B16: Done
A17: Find cost of dosing tank, Local and Means | B17: Cost based on Jan 2011 Quote from Jensen Precast, FOB Elko
A18: Revse dosing tank cost to reflect Means or Jensen Precast Quote | B18: Done
A19: Piping Shoud include LE&M for Both 6&4 add excavation | B19: Done
A20: Consider Radial Stacker for Load and Place in the Pond | B20: Considered, not used, RS costs not in SRCE, Used dozer to push fill into pond
A21: Consider Demo and Removal of Pumps, Equipment and Structures in Preg Ponds | B21: Considered, Not Used
A22: Haul Distance (Loads) Requiring Water Truck and Grader | B22: Considered, Not Used, Captured in SRCE
A23: Pond to Pond Coffer Dam | B23: Considered, Not Used, Minor cost assumed to be included
A24: Wrap Arround Pond | B24: Not sure what this is
A25: Set as stand alone Calculator no direct tie to SRCE | B25: Done
A26: Link to SRCE cost data file only with internal productivities | B26: Done
A27: Add leachfield cost | B27: Considered, Not Used, Minor cost assumed to be included
A28: Revise to reflect new primary liner regardless of age of existing primary. | B28: Done
A29: Add Construction Management | B29: Considered, Not Used, Captured in SRCE
A30: Add Mob-Demob Equipment List | B30: Done
A31: Add Sampling, Monitoring and Reporting | B31: Considered, Not Used, Captured in SRCE
A32: Add drop downs for help with the inputs and explaine outputs. | B32: Done
A33: Compile giuide notes as front page to E-Cell Calculator.
A34: Add Scarify and Ripping Option
